Cogmind - Beta 15 @@@ ROGUE MODE // 2025.08.16 @ 17:27:49 Player: C0-2MO Result: Destroyed by Combat Programmer with EMDS Performance ------------- Evolutions (9) 4500 Regions Visited (36) 7200 Robots Destroyed (233) 1165 Value Destroyed (14681) 14681 Prototype IDs (146) 2920 Alien Tech Used (6) 1200 Bonus (53159) 53159 TOTAL SCORE: 84825 Bonus ------- High Alert Combat Kills 8371 Follower Combat Kills 1598 Entered Garrisons 400 Registered with UFD 300 Met Optimus in HQ 500 Met Imprinter 300 Met Zhirov 300 Met Warlord at Base 500 MAIN.C Attacked Warlord 500 Scanned by Researcher 500 Acquired SGEMP 2000 Destroyed Superfortress 15000 Met Optimus at Protoforge 1000 Completed Drillbomb Mission10000 Delivered SGEMP 2000 Met MAIN.C 5000 Destroyed MAIN.C Shell 5000 Friendly Fire -110 Cogmind --------- Core Integrity 0/1600 Matter 280/300 Energy 878/900 System Corruption 14% Temperature Cool (0) Movement Flying (35) Location -1/Command Parts ------- > --- POWER (2) -------- (None) > --- PROPULSION (8) --- Experimental Biomechanical Wings > --- UTILITY (13) ----- Concept Chromion Battery Advanced Signal Interpreter Concept Core Analysis Suite > --- WEAPON (2) ------- (None) > --- INVENTORY (5) ---- Transdimensional Reconstructor Transdimensional Reconstructor LU-1G1's Laser Shovel Sigix Broadsword Peak State ------------ > --- POWER ------------ Concept Zero-point Core Concept Zero-point Core > --- PROPULSION ------- Q-thruster Impulse Thruster Array Impulse Thruster Array Experimental Biomechanical Wings Experimental Biomechanical Wings Concept Fieldthrust Drive > --- UTILITY ---------- Concept Antigrav Storage Unit Advanced Gravity Neutralizer Long-range Sensor Array Advanced Signal Interpreter Surveybot 17 Chip Concept Core Analysis Suite Transmission Jammer Advanced ECM Suite Concept Cloak Mesh Concept Cloak Mesh Improved System Shield Experimental System Purifier Amulet of Y3-NDR > --- WEAPON ----------- Sigix Broadsword > --- INVENTORY -------- Experimental Antimatter Reactor Concept Zero-point Core Concept Zero-point Core Impulse Thruster Array Impulse Thruster Array Impulse Thruster Array Experimental Biomechanical Wings Concept Fieldthrust Drive Concept Chromion Battery Concept Chromion Battery Concept NT7 Matterbank Stasis Canceller ECM Suite Transdimensional Reconstructor Transdimensional Reconstructor Vortex Driver Vortex Driver Concept Miniperforator Concept Helical Railcannon Concept Heavy Railcannon LU-1G1's Laser Shovel [Rating: 261] Favorites ----------- Power Concept Zero-point Core Engine Subdweller Power Source Power Core Concept Zero-point Core Reactor Cold Fusion Reactor Propulsion Q-thruster Treads Light Treads Wheel Wheel Flight Unit Q-thruster Utility Surveybot 17 Chip Device Advanced Terrain Scanner Storage Large Storage Unit Processor Surveybot 17 Chip Hackware Improved System Shield Protection Experimental Utility Shielding Artifact Phase Redirector Weapon Power Sword Energy Gun EM Pulse Gun Energy Cannon Subdweller Beam Cannon Ballistic Gun Subdweller Machine Gun Ballistic Cannon Concept Miniperforator Launcher Concept Smart ZDS Special Weapon LU-1G1's Laser Shovel Impact Weapon Hammer Slashing Weapon Power Sword Piercing Weapon Plasma Lance Build | -11 -10 -10 -8 -8 -6 -6 -6 -6 -6 -6 -6 -6 -5 -5 -5 -5 -5 -5 -5 -4 -4 -4 -4 -4 -4 -4 -3 -3 -3 -3 -3 -2 -2 -2 -1 -1 ------- Run | Yrd Mat Sub Rec Scr Fac Was Fac Gar Fac Low Low Zio Pro Fac Was Fac Upp Upp War Pro Fac Was Fac Upp Upp Zhi Pro Res Gar Res Tes Res Qua Frg Acc Com Slots Evolved 18 | . . . . . 8 . . . . . . . . 2 . . . . . . 2 . . . . . . 2 . . . 2 . . 2 . Power 1 | . . . . . . . . . . . . . . 1 . . . . . . . . . . . . . . . . . . . . . . Propulsion 6 | . . . . . 4 . . . . . . . . 1 . . . . . . . . . . . . . . . . . 1 . . . . Utility 11 | . . . . . 4 . . . . . . . . . . . . . . . 2 . . . . . . 2 . . . 1 . . 2 . Weapon . | . . . . . . . . . . . . . . . . . . . . . . . . . . . . . . . . . . . . . Parts Attached 218 | 6 10 12 2 13 14 1 10 1 4 2 2 1 . 14 1 12 . . 5 . 12 1 1 . . 3 . 14 1 3 6 1 6 50 6 4 Power 23 | 1 1 1 1 2 1 . 1 1 . 1 . . . 3 . 3 . . . . . . . . . 1 . . . 1 . . 1 4 . . Engine 5 | 1 1 1 1 1 . . . . . . . . . . . . . . . . . . . . . . . . . . . . . . . . Core 10 | . . . . 1 1 . 1 . . 1 . . . 3 . 1 . . . . . . . . . . . . . . . . . 2 . . Reactor 8 | . . . . . . . . 1 . . . . . . . 2 . . . . . . . . . 1 . . . 1 . . 1 2 . . Propulsion 57 | 2 1 3 1 4 3 1 3 . . . . . . 8 . 3 . . 2 . 4 . . . . . . 7 . . 1 1 . 8 2 3 Treads 5 | 1 1 1 1 1 . . . . . . . . . . . . . . . . . . . . . . . . . . . . . . . . Leg . | . . . . . . . . . . . . . . . . . . . . . . . . . . . . . . . . . . . . . Wheel 6 | 1 . 2 . 3 . . . . . . . . . . . . . . . . . . . . . . . . . . . . . . . . Hover . | . . . . . . . . . . . . . . . . . . . . . . . . . . . . . . . . . . . . . Flight 46 | . . . . . 3 1 3 . . . . . . 8 . 3 . . 2 . 4 . . . . . . 7 . . 1 1 . 8 2 3 Utility 99 | 1 2 3 . 2 9 . 5 . 4 1 2 . . 3 1 6 . . 2 . 7 . 1 . . 2 . 6 1 2 3 . 4 28 4 . Device 54 | 1 1 1 . 2 3 . 2 . 2 . 1 . . 1 1 5 . . 2 . 4 . 1 . . . . 3 1 2 2 . 2 13 4 . Storage 12 | . . 2 . . 1 . 1 . . . . . . 1 . . . . . . . . . . . 1 . 1 . . . . . 5 . . Processor 15 | . . . . . 3 . . . 1 . . . . . . . . . . . 1 . . . . . . 1 . . 1 . 1 7 . . Hackware 13 | . . . . . 2 . 2 . 1 . 1 . . 1 . 1 . . . . 2 . . . . . . 1 . . . . . 2 . . Protection 4 | . 1 . . . . . . . . 1 . . . . . . . . . . . . . . . 1 . . . . . . . 1 . . Artifact 1 | . . . . . . . . . . . . . . . . . . . . . . . . . . . . . . . . . 1 . . . Weapon 39 | 2 6 5 . 5 1 . 1 . . . . 1 . . . . . . 1 . 1 1 . . . . . 1 . . 2 . 1 10 . 1 Energy Gun 5 | 2 1 . . . . . . . . . . . . . . . . . . . . . . . . . . . . . . . . 2 . . Energy Cannon 5 | . . 1 . . . . . . . . . . . . . . . . 1 . . . . . . . . . . . 2 . . . . 1 Ballistic Gun 9 | . 4 4 . . . . . . . . . . . . . . . . . . . 1 . . . . . . . . . . . . . . Ballistic Cannon 4 | . 1 . . . . . . . . . . . . . . . . . . . . . . . . . . . . . . . . 3 . . Launcher 3 | . . . . 1 . . . . . . . . . . . . . . . . . . . . . . . . . . . . . 2 . . Special Weapon 5 | . . . . 3 . . . . . . . . . . . . . . . . 1 . . . . . . . . . . . . 1 . . Impact Weapon 2 | . . . . . 1 . . . . . . . . . . . . . . . . . . . . . . . . . . . . 1 . . Slashing Weapon 3 | . . . . 1 . . 1 . . . . . . . . . . . . . . . . . . . . . . . . . 1 . . . Piercing Weapon 3 | . . . . . . . . . . . . 1 . . . . . . . . . . . . . . . 1 . . . . . 1 . . Special Melee Weapon . | . . . . . . . . . . . . . . . . . . . . . . . . . . . . . . . . . . . . . Unidentified Prototypes 37 | . . 1 . 1 . . 1 . 1 1 1 . . . . 1 . . 4 . 1 . . . . 4 . 2 . 1 3 . 4 11 . . Parts Lost 60 | . 2 3 . 1 . . 3 . 1 4 . . . 1 . 3 . . . . 3 . . . . . 3 1 . 1 2 . 1 11 3 17 Power 5 | . . 1 . . . . . . . 1 . . . . . . . . . . . . . . . . . . . . . . . 1 . 2 Propulsion 19 | . . 2 . . . . 1 . . 1 . . . . . 2 . . . . 2 . . . . . 1 . . . 1 . 1 2 . 6 Utility 32 | . . . . . . . 2 . 1 2 . . . 1 . 1 . . . . 1 . . . . . 2 1 . 1 1 . . 8 3 8 Weapon 4 | . 2 . . 1 . . . . . . . . . . . . . . . . . . . . . . . . . . . . . . . 1 Highest Loss Streak 17 | . 1 1 . 1 . . 2 . 1 3 . . . 1 . 1 . . . . 2 . . . . . 2 1 . 1 2 . 1 3 3 17 To Critical Strikes . | . . . . . . . . . . . . . . . . . . . . . . . . . . . . . . . . . . . . . Average Backups 13 | 3 4 9 11 8 9 10 9 10 9 8 8 9 9 9 11 13 13 13 14 15 13 14 14 14 15 14 14 14 20 20 19 15 17 19 19 17 Power 1 | . 1 1 2 1 . 1 1 1 1 1 . . . . . 1 2 2 2 2 2 2 2 2 2 2 2 2 2 2 2 2 2 2 3 2 Propulsion 2 | 1 2 1 2 1 . 1 . 1 1 1 2 3 3 2 3 2 3 3 3 3 1 2 1 2 2 2 2 2 4 4 3 2 2 2 4 4 Utility 5 | . 1 2 3 2 3 5 4 5 4 5 4 4 4 5 5 7 6 6 5 6 5 5 5 6 6 6 6 6 10 10 9 7 7 5 4 3 Weapon 2 | . . 3 2 . . . . . . . . . . . 1 . 1 1 1 2 2 3 3 3 3 2 2 2 2 2 2 2 2 4 4 3 Tool/Special . | . . . . . . . . . . . . . . . . . . . . . . . . . . . . . . . . . . . . . Unused Backups 24 | . 1 . . 2 1 . . . . 1 1 . . 2 . 2 . . . . . . . . . . . . . . 2 . 1 4 . 7 Power 5 | . . . . 1 . . . . . . . . . . . . . . . . . . . . . . . . . . . . . 2 . 2 Propulsion 4 | . . . . . . . . . . . . . . 2 . . . . . . . . . . . . . . . . . . . . . 2 Utility 8 | . 1 . . . . . . . . . 1 . . . . 1 . . . . . . . . . . . . . . 2 . . 2 . 1 Weapon 1 | . . . . 1 . . . . . . . . . . . . . . . . . . . . . . . . . . . . . . . . Tool/Special 6 | . . . . . 1 . . . . 1 . . . . . 1 . . . . . . . . . . . . . . . . 1 . . 2 Average Slot Usage (%) 84 | . 99 96 100 80 67 76 74 75 75 71 72 75 80 93 94 81 76 76 82 88 88 84 84 84 84 82 80 88 90 89 89 87 87 86 80 64 Engine 2 | . 14 12 14 4 . . . . . . . . . . . . . . . . . . . . . . . . . . . . . . . . Core 4 | . . . . 2 4 5 5 3 . . 6 6 6 9 11 8 5 5 5 5 5 5 5 5 5 5 5 4 4 1 . . . 6 8 6 Reactor 2 | . . . . . . . . 2 6 5 . . . . . 1 5 5 5 5 4 5 5 5 5 4 5 3 4 6 9 8 8 1 . . Treads 2 | . 14 13 14 2 . . . . . . . . . . . . . . . . . . . . . . . . . . . . . . . . Wheel 3 | . 14 14 14 21 . . . . . . . . . . . . . . . . . . . . . . . . . . . . . . . . Flight 20 | . . . . . 13 16 16 18 18 18 20 20 20 36 41 27 23 23 26 29 29 26 26 26 26 26 26 27 28 28 27 30 29 26 24 17 Device 15 | . 17 16 14 11 19 11 9 12 12 10 13 13 13 10 11 10 11 11 11 11 13 15 15 15 15 14 14 22 21 18 22 22 21 19 26 20 Storage 5 | . . 9 14 13 5 5 5 6 6 6 6 6 6 5 5 5 5 5 5 5 5 5 5 5 5 5 5 4 4 4 4 4 4 5 4 6 Processor 8 | . . . . . 11 16 16 12 12 11 6 6 6 5 5 5 5 5 5 5 9 10 10 10 10 10 7 5 9 9 8 8 9 15 9 8 Hackware 7 | . . . . . 5 11 10 12 11 6 12 13 13 11 11 11 11 11 11 11 11 10 10 10 10 10 10 9 9 9 9 8 8 5 4 2 Ballistic Gun 2 | . 9 17 14 2 . . . . . . . . . . . . . . . . . . . . . . . . . . . . . . . . Slashing Weapon 2 | . . . . 9 . . . 6 6 6 6 6 6 5 5 5 5 5 5 5 5 5 5 5 5 5 5 1 . . . . 2 1 2 1 Peak Build Rating 261 | 6 8 17 17 26 85 83 86 87 97 101 89 93 95 98 80 100 100 100 111 108 124 121 121 121 121 117 122 142 151 153 164 161 195 257 261 243 Average Rating 115 | 4 7 12 17 15 78 77 76 85 89 92 87 90 93 81 80 89 95 95 103 106 109 115 115 115 115 115 112 133 147 146 145 155 174 223 233 189 On Entrance 100 | . 6 8 17 17 20 83 77 81 87 89 87 89 93 93 84 80 95 95 95 108 106 118 115 115 115 115 117 93 140 151 146 146 159 187 248 243 Naked Turns 94 | . . . . 94 . . . . . . . . . . . . . . . . . . . . . . . . . . . . . . . . Heaviest Build 85 | 10 13 51 38 39 27 24 25 30 30 40 27 24 24 41 38 45 45 45 45 45 48 47 48 48 48 45 48 68 70 69 71 70 79 85 74 80 Greatest Support 82 | 16 16 30 10 30 30 36 36 36 36 39 36 36 30 42 42 46 45 45 46 46 49 49 49 49 49 49 49 70 70 70 71 79 82 82 82 82 Greatest Overweight (x) 5 | . . 5 3 3 . . 1 . . 1 1 . . 1 . . . . 1 . . . . . . . . . . 1 1 . 1 1 . 4 Average Overweight (x) . | . . 1 3 1 . . . . . . . . . . . . . . . . . . . . . . . . . . . . . . . . Largest Inventory Capacity 25 | 5 5 25 15 15 15 10 10 10 10 10 10 10 10 15 15 15 15 15 15 15 15 15 15 15 15 15 15 20 20 20 20 20 20 25 25 25 Average Capacity 16 | 5 5 13 15 14 10 10 10 10 10 10 10 10 10 11 15 15 15 15 15 15 15 15 15 15 15 15 15 16 20 20 20 20 20 23 25 22 Most Carried 25 | 4 5 15 15 15 11 10 10 10 10 10 10 10 10 13 12 15 15 15 15 15 15 15 15 15 15 15 15 20 20 20 20 18 20 25 25 25 Average Carried 15 | 3 4 10 14 12 9 10 9 10 9 9 9 10 10 10 12 14 14 14 14 15 13 14 14 14 14 14 14 15 19 20 19 17 19 22 24 20 Final Capacity 25 | 5 5 15 15 15 10 10 10 10 10 10 10 10 10 15 15 15 15 15 15 15 15 15 15 15 15 15 15 20 20 20 20 20 20 25 25 5 Final Carried 24 | 4 5 15 15 15 10 10 10 10 10 7 10 10 10 12 12 15 15 15 15 15 15 14 15 15 15 15 15 20 20 20 19 17 19 20 24 5 Class Distribution -------------------- 22% | Hacker-Ninja 21% | Mutant 19% | Hacker-Scout 9% | Hacker-Sprinter 5% | Scavenger-Sprinter 4% | Scavenger-Scout 3% | Scavenger-Ninja 3% | Scavenger-Mutant Dominant Class ---------------- Mutant | -10/Materials Mutant | -10/Subcaves Mutant | -8/Recycling Mutant | -8/Scraptown Derelict-Mutant | -6/Factory Hacker-Scout | -6/Waste Hacker-Scout | -6/Factory Hacker-Sprinter | -6/Garrison Hacker-Scout | -6/Factory Sprinter | -6/Lower Caves Mutant | -6/Lower Caves Mutant | -6/Zion Mutant | -5/Proximity Caves Hacker-Sprinter | -5/Factory Hacker-Sprinter | -5/Waste Hacker-Sprinter | -5/Factory Hacker-Scout | -5/Upper Caves Hacker-Scout | -5/Upper Caves Hacker-Sprinter | -5/Warlord Hacker-Scout | -4/Proximity Caves Hacker-Ninja | -4/Factory Hacker-Ninja | -4/Waste Hacker-Ninja | -4/Factory Hacker-Ninja | -4/Upper Caves Hacker-Ninja | -4/Upper Caves Hacker-Ninja | -4/Zhirov Hacker-Sprinter | -3/Proximity Caves Hacker-Ninja | -3/Research Hacker-Sprinter | -3/Garrison Hacker-Ninja | -3/Research Hacker-Ninja | -3/Testing Hacker-Ninja | -2/Research Hacker-Ninja | -2/Quarantine Scavenger-Scout | -2/Protoforge Infiltrator-Sprinter | -1/Access Infiltrator-Sprinter | -1/Command Resources | -11 -10 -10 -8 -8 -6 -6 -6 -6 -6 -6 -6 -6 -5 -5 -5 -5 -5 -5 -5 -4 -4 -4 -4 -4 -4 -4 -3 -3 -3 -3 -3 -2 -2 -2 -1 -1 ----------- Run | Yrd Mat Sub Rec Scr Fac Was Fac Gar Fac Low Low Zio Pro Fac Was Fac Upp Upp War Pro Fac Was Fac Upp Upp Zhi Pro Res Gar Res Tes Res Qua Frg Acc Com Matter Collected 27118 | 260 122 312 38 225 122 198 175 40 190 28 119 17 9 181 . 376 . 61 . 121 163 259 150 36 44 80 10 331 . 83 222 153 331 22049 66 547 Remotely 12410 | . . . . . . . . . . . . . . . . . . . . . . . . . . . . . . . . . . 12410 . . Salvage Created 7383 | 114 424 200 295 . 259 . 65 66 206 . 11 . . 360 . 223 . . . . 279 . 150 . . 97 . 200 . 114 222 44 97 3629 97 231 Parts 319 | 5 30 10 15 . 11 . 8 3 8 . . . . 10 . 15 . . . . 12 . 5 . . . . 20 . 4 3 2 . 152 6 . Haulers Intercepted 6 | . 1 . . . 1 . . . 2 . . . . 2 . . . . . . . . . . . . . . . . . . . . . . Recyclers Shooed 7 | 1 1 . 1 . 1 . . . . . . . . . . 1 . . . . . . . . . . . . . . 2 . . . . . Parts Field Recycled . | . . . . . . . . . . . . . . . . . . . . . . . . . . . . . . . . . . . . . Retrieved Matter . | . . . . . . . . . . . . . . . . . . . . . . . . . . . . . . . . . . . . . Parts Self-Destructed 40 | . . 11 . . . . . . . . . . 5 . . . 7 . . 17 . . . . . . . . . . . . . . . . Prevented 10 | . . . . . . . . . . . . . 8 . . . 1 . . 1 . . . . . . . . . . . . . . . . Kills | -11 -10 -10 -8 -8 -6 -6 -6 -6 -6 -6 -6 -6 -5 -5 -5 -5 -5 -5 -5 -4 -4 -4 -4 -4 -4 -4 -3 -3 -3 -3 -3 -2 -2 -2 -1 -1 ------- Run | Yrd Mat Sub Rec Scr Fac Was Fac Gar Fac Low Low Zio Pro Fac Was Fac Upp Upp War Pro Fac Was Fac Upp Upp Zhi Pro Res Gar Res Tes Res Qua Frg Acc Com Combat Hostiles Destroyed 165 | . 9 5 1 . 9 . 1 1 1 . 1 . . 1 . 1 . . . . . . . . . . . 1 . . . . 1 132 . 1 Melee 13 | . . . . . . . 1 1 1 . 1 . . 1 . 1 . . . . . . . . . . . 1 . . . . 1 5 . . Guns 12 | . 9 3 . . . . . . . . . . . . . . . . . . . . . . . . . . . . . . . . . . Cannons 41 | . . 2 1 . . . . . . . . . . . . . . . . . . . . . . . . . . . . . . 37 . 1 AOE 99 | . . . . . 9 . . . . . . . . . . . . . . . . . . . . . . . . . . . . 90 . . Classes Destroyed 28 | 2 4 3 . . 2 . 1 . 1 . 1 . . . . 1 . . . . . . . . . . . . . . . . . 13 . . Builder 4 | . . . . . . . . . . . . . . . . 1 . . . . . . . . . . . 3 . . . . . . . . Tunneler 4 | 1 . . . . . . . . . . . . . . . 1 . . . . . . . . . . . 1 . . . . . . 1 . Hauler 6 | . 1 . . . 1 . . . 2 . . . . 2 . . . . . . . . . . . . . . . . . . . . . . Recycler 9 | 1 . . 3 . . . . . . . . . . 1 . 1 . . . . 1 . 1 . . . . . . . 1 . . . . . Carrier 6 | . . . . . . . . . . . . . . . . . . . . . . . . . . . . . . . . . . 6 . . Mechanic 14 | . . . . . . . . . . . . . . . . . . . . . . . . . . . . . . . . . . 14 . . Operator 5 | . . . . . 1 . . . . . . . . . . 1 . . . . . . . . . . . . . . . . . 2 1 . Drone 6 | . . . . . . . . . 1 . . . . . . 1 . . . . . . . . . . . . . . . . . 4 . . Watcher 18 | . 2 . . . . . 1 . 1 . . . . . . . . . . . 4 . . . . . . 1 . 3 2 1 . 2 1 . Swarmer 22 | . 3 . . . 4 . . . . . . . . 1 . . . . . . . . . . . . . . . . . . . 14 . . Saboteur 2 | . . . . . . . . . . . . . . . . . . . . . . . . . . . . . . . . . . 2 . . Grunt 40 | . 6 . . . 2 . . 1 . . . . . . . . . . . . . . . . . . . . . . . . 1 30 . . Brawler 7 | . . . . . . . . . . . . . . . . . . . . . . . . . . . . . . . . . . 7 . . Duelist 5 | . . . . . . . . . . . . . . . . . . . . . . . . . . . . . . . . . . 5 . . Protector 4 | . . . . . . . . . . . . . . . . . . . . . . . . . . . . . . . . . . 4 . . Researcher 3 | . . . . . . . . . . . . . . . . . . . . . . . . . . . . . . . . . . 3 . . Sentry 13 | . . 1 1 . 1 . . . . . . . . . . . . . . . . . . . . . . . . . . . . 10 . . Demolisher 1 | . . . . . . . . . . . . . . . . . . . . . . . . . . . . . . . . . . 1 . . Hunter 11 | . . . . . 2 . . . . . . . . . . . . . . . . . . . . . . . . . . . . 9 . . Programmer 9 | . . . . . . . 1 . . . . . . . . . . . . . . . . . . . . 1 . . . . . 7 . . Hotshot 2 | . . . . . . . . . . . . . . . . . . . . . . . . . . . . . . . . . . 2 . . Decapitator 4 | . . . . . . . . . . . . . . . . . . . . . . . . . . . . . . . . . . 4 . . Immortal 4 | . . . . . . . . . . . . . . . . . . . . . . . . . . . . . . . . . . 4 . . Striker 11 | . . . . . . . . . . . . . . . . . . . . . . . . . . . . . . . . . . 11 . . Executioner 16 | . . . . . . . . . . . . . . . . . . . . . . . . . . . . . . . . . . 16 . . Alpha 7 2 | . . . . . . . . . . . . . . . . . . . . . . . . . . . . . . . . . . 2 . . Artisan 1 | . . 1 . . . . . . . . . . . . . . . . . . . . . . . . . . . . . . . . . . Subdweller 4 | . . 4 . . . . . . . . . . . . . . . . . . . . . . . . . . . . . . . . . . Scrapoid 1 | . . . . . . . . . . . . . . . . . . . . . . . . . . . . . . . . . . 1 . . Thief 1 | . . . . . . . . . . . 1 . . . . . . . . . . . . . . . . . . . . . . . . . Best Kill Streak 25 | 1 4 2 2 . 9 . 1 1 1 . 1 . . 2 . 1 . . . . 2 . 1 . . . . 2 . 1 1 1 1 25 1 1 Combat Bots Only 22 | . 4 2 1 . 9 . 1 1 1 . 1 . . 1 . 1 . . . . . . . . . . . 1 . . . . 1 22 . 1 Max Kills in Single Turn 7 | 1 1 1 1 . 2 . 1 1 1 . 1 . . 1 . 1 . . . . 1 . 1 . . . . 1 . 1 1 1 1 7 1 1 Gunslinging . | . . . . . . . . . . . . . . . . . . . . . . . . . . . . . . . . . . . . . Exploded 6 | . . . . . 2 . . . . . . . . . . . . . . . . . . . . . . . . . . . . 6 . . Melee 1 | . . . . . . . 1 1 1 . 1 . . 1 . 1 . . . . . . . . . . . 1 . . . . 1 1 . . Uniques/NPCs Destroyed 1 | . . . . . . . . . . . . . . . . . . . . . . . . . . . . . . . . . . . . 1 MAIN.C Shell (-1/Command) Combat | -11 -10 -10 -8 -8 -6 -6 -6 -6 -6 -6 -6 -6 -5 -5 -5 -5 -5 -5 -5 -4 -4 -4 -4 -4 -4 -4 -3 -3 -3 -3 -3 -2 -2 -2 -1 -1 -------- Run | Yrd Mat Sub Rec Scr Fac Was Fac Gar Fac Low Low Zio Pro Fac Was Fac Upp Upp War Pro Fac Was Fac Upp Upp Zhi Pro Res Gar Res Tes Res Qua Frg Acc Com Hostile Shots Fired 922 | . 39 35 10 23 58 . 153 41 38 20 7 . 3 28 . 46 . . . . 40 . . 4 1 . 6 39 12 16 6 27 47 77 . 146 Missed 428 | . 11 12 4 5 28 . 88 17 19 11 2 . 3 16 . 18 . . . . 16 . . 2 . . 2 23 5 9 4 19 31 40 . 43 Hits 494 | . 28 23 6 18 30 . 65 24 19 9 5 . . 12 . 28 . . . . 24 . . 2 1 . 4 16 7 7 2 8 16 37 . 103 Melee 2 | . . . . . . . . . . . 1 . . . . . . . . . . . . . . . . . . . . . . 1 . . Projectile 492 | . 28 23 6 18 30 . 65 24 19 9 4 . . 12 . 28 . . . . 24 . . 2 1 . 4 16 7 7 2 8 16 36 . 103 AOE 3 | . . . . . . . . . . . . . . . . . . . . . . . . . . . . . . . . . . 2 . 1 Critical Strikes 22 | . 1 . . 1 . . . 1 . . . . . . . . . . . . . . . . . . . . 1 . . . 1 4 . 13 Actively Blocked 1 | . . . . . . . . . . . . . . . . . . . . . . . . . . . . . . . . . 1 . . . Part Disruptions 17 | . . . . . . . 1 . 1 . 2 . . . . . . . . . . . . . . . . . . . . . . 2 . 11 Damage Taken 13048 | . 314 487 85 304 431 . 1017 251 532 339 86 . . 160 . 599 . . . 23 650 . . 30 18 . 294 315 141 162 357 178 426 1906 311 3632 Core 3500 | . 30 78 12 111 39 . 85 6 127 53 . . . 40 . 219 . . . . 212 . . . 18 . 86 23 68 23 18 44 43 552 82 1531 Absorbed by Shields . | . . . . . . . . . . . . . . . . . . . . . . . . . . . . . . . . . . . . . Redirected to Shielding 134 | . 6 . . . . . . . . . . . . . . . . . . . . . . . . . . 21 28 79 . . . . . . Regen/Repaired (Parts) 991 | . . . . . . 10 126 . . . . . . 13 . 116 . . 1 . 181 . 13 . . . . 116 . 35 15 . 125 240 . . Core Remaining (%) 64 | 100 . . . 7 . . . . . . . . 63 . . . . . . 74 . . . . . . 72 . . . 89 . . 44 . . Volleys Fired 422 | 11 34 54 9 . 12 . . . . . . . . . . . . . 1 . 2 . . . . . . . . . . . . 273 . 26 Largest 2 | 2 2 2 2 . 1 . . . . . . . . . . . . . 1 . 1 . . . . . . . . . . . . 1 . 1 Hottest 110 | 80 85 95 110 . 30 . . . . . . . . . . . . . 100 . 7 . . . . . . . . . . . . 110 . 110 Shots Fired 490 | 22 64 73 18 . 12 . . . . . . . . . . . . . 1 . 2 . . . . . . . . . . . . 273 . 25 Gun 154 | 22 64 59 9 . . . . . . . . . . . . . . . . . . . . . . . . . . . . . . . . . Cannon 227 | . . 14 9 . . . . . . . . . . . . . . . 1 . . . . . . . . . . . . . . 178 . 25 Launcher 106 | . . . . . 12 . . . . . . . . . . . . . . . . . . . . . . . . . . . . 94 . . Special 3 | . . . . . . . . . . . . . . . . . . . . . 2 . . . . . . . . . . . . 1 . . Kinetic 301 | . 37 63 9 . . . . . . . . . . . . . . . . . . . . . . . . . . . . . . 173 . 19 Thermal 23 | . 4 10 9 . . . . . . . . . . . . . . . . . . . . . . . . . . . . . . . . . Explosive 106 | . . . . . 12 . . . . . . . . . . . . . . . . . . . . . . . . . . . . 94 . . Electromagnetic 45 | 22 23 . . . . . . . . . . . . . . . . . . . . . . . . . . . . . . . . . . . Entropic 12 | . . . . . . . . . . . . . . . . . . . 1 . . . . . . . . . . . . . . 5 . 6 Robot Hit Streak 19 | 2 16 19 14 . 7 . . . . . . . . . . . . . . . 5 . . . . . . . . . . . . 10 . 16 Robot Miss Streak 8 | 5 2 1 1 . 2 . . . . . . . . . . . . . . . . . . . . . . . . . . . . 8 . 1 Penetration Max 2 | . . . . . . . . . . . . . . . . . . . . . . . . . . . . . . . . . . 2 . . Secondary Targets 4 | . 3 1 . . . . . . . . . . . . . . . . . . . . . . . . . . . . . . . . . . Max Gunslinging Chain 1 | . 1 1 . . . . . . . . . . . . . . . . . . . . . . . . . . . . . . . . . . Shots Hit Robots 381 | 8 47 34 13 . 12 . 4 5 9 . 3 . . 16 . 7 . . . . 13 . 5 . . 2 . 6 . 6 7 1 1 155 3 24 Core Hits 390 | 3 22 9 4 . 26 . 1 2 4 . 1 . . 3 . 3 . . . . 5 . 1 . . 1 . 3 . 4 3 . . 284 2 9 Critical Kills 31 | . . 1 1 . . . . . . . . . . . . . . . . . . . . . . . . . . . . . . 29 . . Critical Parts Destroyed 54 | . . . . . . . . . . . . . . . . . . . . . . . . . . . . . . . . . . 54 . . Critical Strikes 134 | . . 2 1 . . . . 1 2 . 1 . . 2 . . . . . . . . . . . 1 . 1 . 1 1 1 . 118 . 2 Meltdown 1 | . . . 1 . . . . . . . . . . . . . . . . . . . . . . . . . . . . . . . . . Destroy 112 | . . 2 . . . . . . . . . . . . . . . . . . . . . . . . . . . . . . . 110 . . Blast 8 | . . . . . . . . . . . . . . . . . . . . . . . . . . . . . . . . . . 7 . 1 Sever 7 | . . . . . . . . 1 2 . 1 . . 2 . . . . . . . . . . . 1 . . . . . . . . . . Impale 5 | . . . . . . . . . . . . . . . . . . . . . . . . . . . . 1 . 1 1 1 . 1 . . Sunder 1 | . . . . . . . . . . . . . . . . . . . . . . . . . . . . . . . . . . . . 1 Melee Attacks 514 | . . . . 4 16 . 61 12 32 2 12 1 2 43 . 59 . 5 . . 42 . 34 1 . 2 5 34 1 30 26 3 21 46 16 4 Impact 88 | . . . . . 16 . 51 . . . . . . . . . . . . . . . . . . . . . . . . . . 21 . . Slashing 316 | . . . . 4 . . 10 12 32 2 12 1 2 37 . 54 . 5 . . 42 . 34 1 . 2 5 9 . . . . 14 18 16 4 Piercing 110 | . . . . . . . . . . . . . . 6 . 5 . . . . . . . . . . . 25 1 30 26 3 7 7 . . Sneak Attacks 34 | . . . . . 2 . 1 1 4 . . . . 3 . 5 . . . . 2 . 2 . . . . 4 . . 2 . . 7 1 . Combat Hostiles 3 | . . . . . . . . 1 1 . . . . . . 1 . . . . . . . . . . . . . . . . . . . . Follow-up Attacks 2 | . . . . . . . . . . . . . . 2 . . . . . . . . . . . . . . . . . . . . . . Damage Inflicted 56442 | 146 504 526 340 18 1855 . 224 233 571 . 114 . . 819 . 503 . . . . 656 . 341 . . 189 . 506 . 367 531 82 89 45110 307 2411 Guns 1173 | 106 504 437 126 . . . . . . . . . . . . . . . . . . . . . . . . . . . . . . . . . Cannons 7499 | . . 89 214 . . . . . . . . . . . . . . . . . . . . . . . . . . . . . . 4785 . 2411 Explosions 40171 | 40 . . . . 1669 . . . . . . . . . . . . . . . . . . . . . . . . . . . . 38462 . . Melee 7581 | . . . . . 186 . 224 233 571 . 114 . . 819 . 503 . . . . 656 . 341 . . 189 . 506 . 367 531 82 89 1863 307 . Ramming 18 | . . . . 18 . . . . . . . . . . . . . . . . . . . . . . . . . . . . . . . . Kinetic 7027 | . 213 477 126 . . . . . . . . . . . . . . . . . . . . . . . . . . . . . . 4345 . 1866 Thermal 811 | 40 61 49 214 . 447 . . . . . . . . . . . . . . . . . . . . . . . . . . . . . . . Explosive 39604 | . . . . . 1222 . . . . . . . . . . . . . . . . . . . . . . . . . . . . 38382 . . Electromagnetic 336 | 106 230 . . . . . . . . . . . . . . . . . . . . . . . . . . . . . . . . . . . Impact 557 | . . . . . 186 . 38 . . . . . . . . . . . . . . . . . . . . . . . . . . 333 . . Slashing 5586 | . . . . . . . 186 233 571 . 114 . . 784 . 503 . . . . 656 . 341 . . 189 . 440 . . . . 89 1173 307 . Piercing 1518 | . . . . . . . . . . . . . . 35 . . . . . . . . . . . . . 66 . 367 531 82 . 437 . . Entropic 985 | . . . . . . . . . . . . . . . . . . . . . . . . . . . . . . . . . . 440 . 545 Highest Corruption 21 | . . . . 1 . . . . . 5 5 5 . . 9 9 3 3 3 . 2 . . . . . 7 . . . 7 . . 21 13 14 Average Corruption 5 | . . . . 1 . . . . . 5 5 5 . . 9 4 3 3 3 . 1 . . . . . 7 . . . 7 . . 12 7 7 Corruption Purged 52 | . . . . . . . . . . . . . . . . 7 . . . . 2 . . . . . . . . . . . . 24 13 6 Corruption Blocked 1 | . . . . . . . 1 . . . . . . . . . . . . . . . . . . . . . . . . . . . . . Effects 86 | . . . . . . . . . . . 12 1 . . . 20 2 4 . . 8 . . . . . 5 . . . 3 . . 23 3 5 Message Errors 13 | . . . . . . . . . . . 3 . . . . 3 1 . . . 2 . . . . . 1 . . . . . . 1 . 2 Matter Fused 23 | . . . . . . . . . . . 3 1 . . . 5 . 1 . . 1 . . . . . 1 . . . . . . 10 1 . Heat Flow Errors 13 | . . . . . . . . . . . 3 . . . . 5 . . . . 2 . . . . . 1 . . . . . . 1 . 1 Energy Discharges 11 | . . . . . . . . . . . 1 . . . . 3 1 . . . . . . . . . . . . . 2 . . 3 1 . Parts Rejected 2 | . . . . . . . . . . . 1 . . . . . . . . . . . . . . . . . . . . . . 1 . . Parts Fused 1 | . . . . . . . . . . . . . . . . . . . . . . . . . . . . . . . . . . 1 . . Data Loss (minor) 14 | . . . . . . . . . . . 1 . . . . 4 . 2 . . 2 . . . . . 1 . . . 1 . . 2 1 . Data Loss (major) 6 | . . . . . . . . . . . . . . . . . . 1 . . 1 . . . . . 1 . . . . . . 3 . . Alerts 1 | . . . . . . . . . . . . . . . . . . . . . . . . . . . . . . . . . . 1 . . Misdirections 1 | . . . . . . . . . . . . . . . . . . . . . . . . . . . . . . . . . . . . 1 Weapon Failures 1 | . . . . . . . . . . . . . . . . . . . . . . . . . . . . . . . . . . . . 1 Overload Shots . | . . . . . . . . . . . . . . . . . . . . . . . . . . . . . . . . . . . . . Overflow Damage 5792 | . . . . . 155 . 16 . 13 . 4 . . 168 . 156 . . . . 19 . 58 . . . . 193 . 93 179 109 86 4461 48 34 Projectiles 85 | . . . . . . . . . . . . . . . . . . . . . . . . . . . . . . . . . . 51 . 34 Explosions 3903 | . . . . . 75 . . . . . . . . . . . . . . . . . . . . . . . . . . . . 3828 . . Melee 1804 | . . . . . 80 . 16 . 13 . 4 . . 168 . 156 . . . . 19 . 58 . . . . 193 . 93 179 109 86 582 48 . Knockbacks 22 | . . . . . 1 . . . . . . . . . . . . . . . . . . . . . . . . . . . . 21 . . Impact 2 | . . . . . 1 . . . . . . . . . . . . . . . . . . . . . . . . . . . . 1 . . Kinetic 19 | . . . . . . . . . . . . . . . . . . . . . . . . . . . . . . . . . . 19 . . Secondary 1 | . . . . . . . . . . . . . . . . . . . . . . . . . . . . . . . . . . 1 . . Self-Inflicted Damage 219 | . . . . 9 40 . . . . . . . . . . . . . . . . . . . . . . . . . . . . 170 . . Shots 2 | . . . . . 1 . . . . . . . . . . . . . . . . . . . . . . . . . . . . 1 . . Rammed 1 | . . . . 1 . . . . . . . . . . . . . . . . . . . . . . . . . . . . . . . . Targets Rammed 1 | . . . . 1 . . . . . . . . . . . . . . . . . . . . . . . . . . . . . . . . Kicked . | . . . . . . . . . . . . . . . . . . . . . . . . . . . . . . . . . . . . . Crushed . | . . . . . . . . . . . . . . . . . . . . . . . . . . . . . . . . . . . . . Highest Temperature 315 | 108 148 . 171 17 12 . 4 315 6 18 291 . . 300 . 270 . . 52 19 258 36 32 68 32 26 69 21 47 6 12 142 301 137 . 172 Average Temperature 51 | 51 42 . 51 12 6 . 3 200 4 11 129 . . 105 . 64 . . 22 11 33 18 7 27 13 13 48 3 27 2 3 63 101 70 . 37 Received Heat Transfer 1428 | . 138 54 27 175 69 . 99 382 45 12 40 . . 9 . 45 . . . 9 27 . . . . . 12 9 57 . 18 18 . 84 . 99 Effects 10 | . . . . . . . . . . . 1 . . 1 . . . . . . . . . . . . . . . . . . 8 . . . Energy Bleed 5 | . . . . . . . . . . . 1 . . 1 . . . . . . . . . . . . . . . . . . 3 . . . Interference 5 | . . . . . . . . . . . . . . . . . . . . . . . . . . . . . . . . . 5 . . . Siege Activations . | . . . . . . . . . . . . . . . . . . . . . . . . . . . . . . . . . . . . . Martial Activations . | . . . . . . . . . . . . . . . . . . . . . . . . . . . . . . . . . . . . . Shielding Activations . | . . . . . . . . . . . . . . . . . . . . . . . . . . . . . . . . . . . . . Robots Disrupted . | . . . . . . . . . . . . . . . . . . . . . . . . . . . . . . . . . . . . . Combat Hostiles . | . . . . . . . . . . . . . . . . . . . . . . . . . . . . . . . . . . . . . Robots Corrupted 3 | . . . . . 2 . 1 . . . . . . . . . . . . . . . . . . . . . . . . . . . . . Combat Hostiles . | . . . . . . . . . . . . . . . . . . . . . . . . . . . . . . . . . . . . . Parts Fried 7 | 1 . . . . 5 . 1 . . . . . . . . . . . . . . . . . . . . . . . . . . . . . Impact Corruptions 10 | . . . . . 3 . 1 . . . . . . . . . . . . . . . . . . . . . . . . . . 6 . . Robots Melted 1 | . . . 1 . . . . . . . . . . . . . . . . . . . . . . . . . . . . . . . . . Combat Hostiles . | . . . . . . . . . . . . . . . . . . . . . . . . . . . . . . . . . . . . . Parts Melted . | . . . . . . . . . . . . . . . . . . . . . . . . . . . . . . . . . . . . . Heat Transferred 905 | 100 148 111 296 . 250 . . . . . . . . . . . . . . . . . . . . . . . . . . . . . . . Parts Sabotaged . | . . . . . . . . . . . . . . . . . . . . . . . . . . . . . . . . . . . . . Parts Stolen . | . . . . . . . . . . . . . . . . . . . . . . . . . . . . . . . . . . . . . Parts Stripped . | . . . . . . . . . . . . . . . . . . . . . . . . . . . . . . . . . . . . . Power Chain Reactions 1 | 1 . . . . . . . . . . . . . . . . . . . . . . . . . . . . . . . . . . . . Alert | -11 -10 -10 -8 -8 -6 -6 -6 -6 -6 -6 -6 -6 -5 -5 -5 -5 -5 -5 -5 -4 -4 -4 -4 -4 -4 -4 -3 -3 -3 -3 -3 -2 -2 -2 -1 -1 ------- Run | Yrd Mat Sub Rec Scr Fac Was Fac Gar Fac Low Low Zio Pro Fac Was Fac Upp Upp War Pro Fac Was Fac Upp Upp Zhi Pro Res Gar Res Tes Res Qua Frg Acc Com Maximum Alert Level 5 | . . . . . 2 . 2 1 2 . . . . 3 1 2 . . . . 1 . 1 . . . . . . . . . 1 5 5 5 Low Security (%) 51 | 100 100 . 100 . 42 100 36 57 35 . . . . 14 . . . . . . 84 100 88 . . . . 100 100 100 100 100 85 19 . . Level 1 15 | . . . . . 18 . 36 42 6 . . . . 12 100 69 . . . . 15 . 11 . . . . . . . . . 14 13 . . Level 2 13 | . . . . . 39 . 26 . 57 . . . . 32 . 30 . . . . . . . . . . . . . . . . . 11 . . Level 3 7 | . . . . . . . . . . . . . . 40 . . . . . . . . . . . . . . . . . . . 23 . . Level 4 1 | . . . . . . . . . . . . . . . . . . . . . . . . . . . . . . . . . . 6 . . Level 5 10 | . . . . . . . . . . . . . . . . . . . . . . . . . . . . . . . . . . 24 100 100 High Security . | . . . . . . . . . . . . . . . . . . . . . . . . . . . . . . . . . . . . . Max Security . | . . . . . . . . . . . . . . . . . . . . . . . . . . . . . . . . . . . . . Peak Influence 4624 | 5 118 . 115 . 494 125 547 295 500 . . . . 934 326 510 . . . . 335 50 226 . . . . 182 193 150 86 55 251 4624 2777 1750 Initial 2774 | . . . 45 . . 124 4 93 154 . . . . 67 326 221 . . . . . 50 . . . . . . 126 108 24 18 27 63 2774 1745 Average 548 | . 56 . 62 . 251 71 270 182 319 . . . . 556 323 354 . . . . 130 18 133 . . . . 59 158 91 44 10 86 1251 2701 1723 Influence Increases 15562 | 10 333 163 315 . 723 43 1332 262 933 60 70 . 228 1299 . 813 . . . 159 716 . 451 . . 5 . 698 67 327 225 88 605 5283 224 130 Destroy 0b10 Robot/C 4660 | . 180 100 80 . 180 . 340 100 . . 40 . 100 440 . 20 . . . 100 . . . . . . . 280 . . . . 20 2660 . 20 Destroy 0b10 Robot/NC 395 | 10 15 . 15 . 10 . 10 . 20 . . . 5 15 . 30 . . . . 25 . 5 . . 5 . 45 . 15 15 5 . 135 15 . Destroy Leader 668 | . 36 . . . 42 . 82 10 6 . . . 10 74 . 10 . . . 20 8 . . . . . . 62 . 6 4 2 . 294 2 . Allied During Kill 472 | . . 33 28 . . . 68 12 . . 30 . 83 123 . 12 . . . 39 . . . . . . . 44 . . . . . . . . Successful Hack 870 | . 12 . 10 . 52 . 65 . 75 . . . . 60 . 64 . . . . 54 . 72 . . . . 82 . 118 41 15 40 110 . . Select Force Hacks 320 | . 60 . 180 . 30 . 50 . . . . . . . . . . . . . . . . . . . . . . . . . . . . . Disable Machine 855 | . . . . . 45 . 15 . 15 . . . . 30 . 15 . . . . 75 . . . . . . 15 . . 105 30 105 330 60 15 Anti-Garrison Action 1550 | . . . . . 200 . . 100 200 . . . . 200 . . . . . . 200 . 200 . . . . . 50 . . . 200 200 . . Destroy Structure 2232 | . . . 2 . 44 43 72 10 62 . . . . 72 . 122 . . . . 144 . 114 . . . . 110 2 68 60 21 90 1014 117 65 Partial Spotted 780 | . . . . . 30 . 30 . 90 . . . . 135 . 165 . . . . 45 . 60 . . . . 60 15 60 . . 60 15 15 . Lose Combat Pursuer 2760 | . 30 30 . . 90 . 600 30 465 60 . . 30 150 . 375 . . . . 165 . . . . . . . . 60 . 15 90 525 15 30 Influence Decreases 13917 | 10 299 102 388 22 368 391 1205 101 1074 128 86 70 120 473 618 625 238 151 115 159 572 144 370 71 10 . 5 530 42 477 236 72 540 772 2120 1213 Entered New Map 4944 | . . 17 50 22 . 231 3 41 141 58 17 70 . 41 608 95 188 51 115 . . 94 . 31 2 . 5 . 42 85 19 14 21 50 1850 983 Time Decay 5931 | 10 279 45 318 . 188 100 388 . 422 30 69 . 100 262 10 470 50 100 . 130 371 50 350 40 8 . . 304 . 362 197 40 359 639 180 60 Search Patrol Dispatched 300 | . . . . . . . 150 . 150 . . . . . . . . . . . . . . . . . . . . . . . . . . . Lost Part 503 | . 20 . . . . . 30 . 10 40 . . . 10 . 30 . . . . 30 . . . . . . 10 . 10 20 . 10 83 30 170 Lost Ally 1031 | . . 40 20 . 30 60 216 60 19 . . . 20 160 . 30 . . . 29 21 . 20 . . . . 216 . 20 . 10 . . 60 . Purge Threat 1208 | . . . . . 150 . 418 . 332 . . . . . . . . . . . 150 . . . . . . . . . . 8 150 . . . Squads Dispatched 151 | . 7 . . . 8 . 16 . 19 . . . . 12 . 17 . . . . 13 . 12 . . . . 11 . 11 2 1 5 12 4 1 Investigation 94 | . 5 . . . 6 . 11 . 11 . . . . 8 . 12 . . . . 9 . 9 . . . . 6 . 6 1 . 4 6 . . Extermination 28 | . . . . . 1 . 2 . 2 . . . . 1 . 5 . . . . 3 . 2 . . . . 3 . 3 1 . 1 1 2 1 Reinforcement 24 | . 2 . . . . . 3 . 4 . . . . 3 . . . . . . 1 . 1 . . . . 2 . 2 . 1 . 5 . . Assault 5 | . . . . . 1 . . . 2 . . . . . . . . . . . . . . . . . . . . . . . . . 2 . Garrison . | . . . . . . . . . . . . . . . . . . . . . . . . . . . . . . . . . . . . . Intercept . | . . . . . . . . . . . . . . . . . . . . . . . . . . . . . . . . . . . . . Searches Triggered 2 | . . . . . . . 1 . 1 . . . . . . . . . . . . . . . . . . . . . . . . . . . Construction Impeded 1 | . . . . . . . 1 . . . . . . . . . . . . . . . . . . . . . . . . . . . . . Haulers Reinforced 4 | . . . . . . . 1 . 1 . . . . 2 . . . . . . . . . . . . . . . . . . . . . . Active Scanning Responses . | . . . . . . . . . . . . . . . . . . . . . . . . . . . . . . . . . . . . . Cargo Convoy Interrupts 1 | . . . . . . . . . . . . . . . . 1 . . . . . . . . . . . . . . . . . . . . Stealth | -11 -10 -10 -8 -8 -6 -6 -6 -6 -6 -6 -6 -6 -5 -5 -5 -5 -5 -5 -5 -4 -4 -4 -4 -4 -4 -4 -3 -3 -3 -3 -3 -2 -2 -2 -1 -1 --------- Run | Yrd Mat Sub Rec Scr Fac Was Fac Gar Fac Low Low Zio Pro Fac Was Fac Upp Upp War Pro Fac Was Fac Upp Upp Zhi Pro Res Gar Res Tes Res Qua Frg Acc Com Distress Signals 49 | . 1 . . . 1 . 2 . 4 . . . . 3 . 6 . . 1 . 3 . 1 . . . . 8 . 6 . 1 1 10 1 . Communications Jammed . | . . . . . . . . . . . . . . . . . . . . . . . . . . . . . . . . . . . . . Distress Signals . | . . . . . . . . . . . . . . . . . . . . . . . . . . . . . . . . . . . . . Times Spotted 607 | . 15 17 4 8 22 6 57 5 33 6 3 . 4 28 5 40 . . . 5 31 . 9 11 2 . 9 48 7 27 9 15 29 133 4 15 Peak Tracking Total 17 | . 4 4 2 5 6 2 10 4 8 5 2 . 4 6 5 9 . . . 3 9 . 3 8 4 . 8 11 9 7 6 13 17 11 2 12 Tactical Retreats 131 | . 2 1 . . 4 . 12 1 14 2 1 . 2 5 . 14 . . . . 11 . 2 2 1 . 1 16 . 7 2 3 5 20 1 2 Traps | -11 -10 -10 -8 -8 -6 -6 -6 -6 -6 -6 -6 -6 -5 -5 -5 -5 -5 -5 -5 -4 -4 -4 -4 -4 -4 -4 -3 -3 -3 -3 -3 -2 -2 -2 -1 -1 ------- Run | Yrd Mat Sub Rec Scr Fac Was Fac Gar Fac Low Low Zio Pro Fac Was Fac Upp Upp War Pro Fac Was Fac Upp Upp Zhi Pro Res Gar Res Tes Res Qua Frg Acc Com Traps Triggered 43 | . 1 1 . . 1 . 2 9 3 . . . . 1 . 2 . . . . 2 . 1 . . . . . . . 3 . . 17 . . Indirectly . | . . . . . . . . . . . . . . . . . . . . . . . . . . . . . . . . . . . . . Trap Hack Attempts . | . . . . . . . . . . . . . . . . . . . . . . . . . . . . . . . . . . . . . Triggered . | . . . . . . . . . . . . . . . . . . . . . . . . . . . . . . . . . . . . . Disarmed . | . . . . . . . . . . . . . . . . . . . . . . . . . . . . . . . . . . . . . Reprogrammed . | . . . . . . . . . . . . . . . . . . . . . . . . . . . . . . . . . . . . . Reused . | . . . . . . . . . . . . . . . . . . . . . . . . . . . . . . . . . . . . . Traps Extracted . | . . . . . . . . . . . . . . . . . . . . . . . . . . . . . . . . . . . . . Installed . | . . . . . . . . . . . . . . . . . . . . . . . . . . . . . . . . . . . . . Triggered . | . . . . . . . . . . . . . . . . . . . . . . . . . . . . . . . . . . . . . Machines | -11 -10 -10 -8 -8 -6 -6 -6 -6 -6 -6 -6 -6 -5 -5 -5 -5 -5 -5 -5 -4 -4 -4 -4 -4 -4 -4 -3 -3 -3 -3 -3 -2 -2 -2 -1 -1 ---------- Run | Yrd Mat Sub Rec Scr Fac Was Fac Gar Fac Low Low Zio Pro Fac Was Fac Upp Upp War Pro Fac Was Fac Upp Upp Zhi Pro Res Gar Res Tes Res Qua Frg Acc Com Machines Disabled 75 | . . 2 . 2 3 . 1 1 1 . 1 . . 2 . 1 1 . 1 . 5 . . . . . . 1 . . 9 3 8 28 4 1 Max in Single Turn 2 | . . 1 . 1 2 . . 1 1 . 1 . . . . . 1 . 1 . 1 . . . . . . 1 . . 1 2 1 2 1 1 Garrison Access 17 | . . . . . 1 . 1 . 1 . . . . 3 . 2 . . . . 4 . 2 . . . . . . 1 . . 1 1 . . Garrison Relay 1 | . . . . . . . . 1 . . . . . . . . . . . . . . . . . . . . . . . . . . . . Machines Repaired . | . . . . . . . . . . . . . . . . . . . . . . . . . . . . . . . . . . . . . Machines Dismantled . | . . . . . . . . . . . . . . . . . . . . . . . . . . . . . . . . . . . . . Machines Sabotaged . | . . . . . . . . . . . . . . . . . . . . . . . . . . . . . . . . . . . . . Overloaded Fab Kills 2 | . . . . . . . 2 . . . . . . . . . . . . . . . . . . . . . . . . . . . . . Hacking | -11 -10 -10 -8 -8 -6 -6 -6 -6 -6 -6 -6 -6 -5 -5 -5 -5 -5 -5 -5 -4 -4 -4 -4 -4 -4 -4 -3 -3 -3 -3 -3 -2 -2 -2 -1 -1 --------- Run | Yrd Mat Sub Rec Scr Fac Was Fac Gar Fac Low Low Zio Pro Fac Was Fac Upp Upp War Pro Fac Was Fac Upp Upp Zhi Pro Res Gar Res Tes Res Qua Frg Acc Com Machines Accessed 269 | . 6 1 12 4 15 . 29 2 23 . 3 . . 20 . 32 . . 7 . 27 . 17 1 . 4 . 17 1 15 6 3 9 14 1 . Terminals 126 | . 4 . 6 . 7 . 12 2 12 . . . . 7 . 15 . . . . 14 . 8 . . . . 8 1 9 4 3 5 8 1 . Fabricators 17 | . . . . . 2 . 2 . 1 . . . . 2 . 3 . . . . 2 . . . . . . 3 . . . . . 2 . . Repair Stations 21 | . . . . . 1 . 3 . . . . . . 1 . 4 . . . . 3 . 1 . . . . 1 . 2 1 . 2 2 . . Recycling Units 57 | . 2 . 6 . 3 . 7 . 7 . . . . 6 . 8 . . . . 4 . 6 . . . . 4 . 3 . . . 1 . . Scanalyzers 7 | . . . . . 1 . 1 . 2 . . . . 1 . . . . . . . . . . . . . . . . 1 . 1 . . . Garrison Access 21 | . . . . . 1 . 4 . 1 . . . . 3 . 2 . . . . 4 . 2 . . . . 1 . 1 . . 1 1 . . Total Hacks 795 | . 11 1 31 41 63 . 85 2 66 . 6 . . 49 . 81 . . 18 . 83 . 46 4 . 17 . 46 2 41 20 9 24 47 2 . Successful 474 | . 5 1 17 41 29 . 44 2 39 . 6 . . 29 . 47 . . 18 . 48 . 24 4 . 17 . 26 2 22 7 6 10 30 . . Failed 320 | . 6 . 14 . 34 . 40 . 27 . . . . 20 . 34 . . . . 35 . 22 . . . . 20 . 19 13 3 14 17 2 . Catastrophic 48 | . . . 2 . 5 . 6 . 4 . . . . 1 . 4 . . . . 7 . 4 . . . . 2 . 5 3 1 3 1 . . Database Lockouts 1 | . . . . . . . 1 . . . . . . . . . . . . . . . . . . . . . . . . . . . . . Manual 497 | . 11 . 24 . 40 . 54 1 45 . . . . 40 . 55 . . . . 53 . 35 . . . . 36 1 32 14 7 15 32 2 . Terminals 440 | . 9 . 16 . 34 . 52 2 48 . . . . 27 . 47 . . . . 50 . 28 . . . . 28 2 30 14 9 14 28 2 . Fabricators 54 | . . . . . 10 . 4 . 3 . . . . 5 . 6 . . . . 8 . . . . . . 10 . . . . . 8 . . Repair Stations 63 | . . . . . 3 . 7 . . . . . . 3 . 12 . . . . 12 . 2 . . . . 2 . 5 4 . 6 7 . . Recycling Units 91 | . 2 . 15 . 7 . 12 . 7 . . . . 8 . 14 . . . . 5 . 8 . . . . 5 . 5 . . . 3 . . Scanalyzers 20 | . . . . . 6 . 2 . 6 . . . . 1 . . . . . . . . . . . . . . . . 2 . 3 . . . Garrison Access 40 | . . . . . 3 . 8 . 2 . . . . 5 . 2 . . . . 8 . 8 . . . . 1 . 1 . . 1 1 . . Terminal Hacks 139 | . . 1 2 41 5 . 9 1 10 . 6 . . 1 . 6 . . 18 . 5 . 2 4 . 17 . 2 1 2 1 1 1 3 . . Record 57 | . . . . 33 . . . . . . 4 . . . . . . . 11 . . . . 4 . 5 . . . . . . . . . . Part Schematic 9 | . . . 2 . . . . . . . . . . . . 1 . . . . 1 . 1 . . 4 . . . . . . . . . . Robot Schematic 1 | . . . . . . . 1 . . . . . . . . . . . . . . . . . . . . . . . . . . . . . Robot Analysis 14 | . . . . 8 . . 2 . . . . . . . . . . . . . . . . . . 4 . . . . . . . . . . Prototype ID Bank 12 | . . . . . 1 . 1 . . . . . . . . . . . 5 . . . . . . 4 . . . 1 . . . . . . Open Door 5 | . . . . . . . . 1 . . 2 . . . . . . . 2 . . . . . . . . . . . . . . . . . Branch Access Points 2 | . . . . . . . . . 1 . . . . . . . . . . . . . . . . . . 1 . . . . . . . . Emergency Access Points 1 | . . . . . . . . . . . . . . . . . . . . . . . . . . . . . 1 . . . . . . . Terminal Index 5 | . . . . . 1 . 1 . . . . . . 1 . . . . . . . . . . . . . 1 . . . . . 1 . . Fabricator Index 1 | . . . . . . . . . . . . . . . . 1 . . . . . . . . . . . . . . . . . . . . Repair Station Index 1 | . . . . . . . . . . . . . . . . . . . . . . . . . . . . . . 1 . . . . . . Garrison Index 1 | . . . . . . . . . . . . . . . . . . . . . . . 1 . . . . . . . . . . . . . Alert Level 2 | . . . . . . . . . 2 . . . . . . . . . . . . . . . . . . . . . . . . . . . Unreport Threat 10 | . . . . . 1 . 3 . 3 . . . . . . . . . . . 1 . . . . . . . . . . 1 1 . . . Locate Traps 2 | . . . . . 1 . . . . . . . . . . . . . . . 1 . . . . . . . . . . . . . . . Recall Extermination 2 | . . . . . . . . . . . . . . . . . . . . . 1 . . . . . . . . . 1 . . . . . Recall Assault 1 | . . . . . . . . . 1 . . . . . . . . . . . . . . . . . . . . . . . . . . . Hauler Manifests 1 | . . . . . . . . . 1 . . . . . . . . . . . . . . . . . . . . . . . . . . . Registered Components 3 | . . . . . . . 1 . 1 . . . . . . 1 . . . . . . . . . . . . . . . . . . . . Registered Prototypes 2 | . . . . . 1 . . . . . . . . . . 1 . . . . . . . . . . . . . . . . . . . . Zone Layout 5 | . . . . . . . . . 1 . . . . . . 2 . . . . 1 . . . . . . . . . . . . 1 . . Proto ID Catalog 2 | . . 1 . . . . . . . . . . . . . . . . . . . . . . . . . . . . . . . 1 . . Fabricator Hacks 24 | . . . . . 2 . 2 . 1 . . . . 2 . 4 . . . . 3 . . . . . . 4 . . . . . 6 . . Network Status 1 | . . . . . . . . . . . . . . . . 1 . . . . . . . . . . . . . . . . . . . . Load Schematic 15 | . . . . . 2 . 1 . 1 . . . . 1 . 2 . . . . 2 . . . . . . 3 . . . . . 3 . . Build 8 | . . . . . . . 1 . . . . . . 1 . 1 . . . . 1 . . . . . . 1 . . . . . 3 . . Repair Station Hacks 31 | . . . . . 1 . 6 . . . . . . 2 . 5 . . . . 8 . 2 . . . . 2 . 2 . . 1 2 . . Scan Component 17 | . . . . . 1 . 3 . . . . . . 1 . 3 . . . . 4 . 1 . . . . 1 . 1 . . 1 1 . . Repair 14 | . . . . . . . 3 . . . . . . 1 . 2 . . . . 4 . 1 . . . . 1 . 1 . . . 1 . . Recycling Unit Hacks 3 | . . . 2 . . . . . . . . . . . . . . . . . . . . . . . . . . 1 . . . . . . Retrieve Matter 1 | . . . . . . . . . . . . . . . . . . . . . . . . . . . . . . 1 . . . . . . Retrieve Components 2 | . . . 2 . . . . . . . . . . . . . . . . . . . . . . . . . . . . . . . . . Scanalyzer 10 | . . . . . 6 . 2 . 2 . . . . . . . . . . . . . . . . . . . . . . . . . . . Insert Component 5 | . . . . . 3 . 1 . 1 . . . . . . . . . . . . . . . . . . . . . . . . . . . Analyze 5 | . . . . . 3 . 1 . 1 . . . . . . . . . . . . . . . . . . . . . . . . . . . Garrison Access Hacks 13 | . . . . . . . 3 . . . . . . 2 . 2 . . . . 3 . 1 . . . . 1 . 1 . . . . . . Unlock Access 3 | . . . . . . . 2 . . . . . . . . . . . . . . . . . . . . 1 . . . . . . . . Seal Access 10 | . . . . . . . 1 . . . . . . 2 . 2 . . . . 3 . 1 . . . . . . 1 . . . . . . Unauthorized Hacks 254 | . 5 . 13 . 15 . 22 1 26 . . . . 22 . 30 . . . . 29 . 19 . . . . 17 1 16 6 5 8 19 . . Terminals 171 | . 3 . 7 . 10 . 12 1 17 . . . . 13 . 19 . . . . 21 . 12 . . . . 10 1 12 5 5 7 16 . . Track 15 | . . . . . . . 2 . 1 . . . . . . 5 . . . . 1 . 1 . . . . 1 . 1 1 . . 2 . . Assimilate 18 | . . . . . 1 . 1 . 4 . . . . 2 . 1 . . . . 2 . 2 . . . . 1 . 3 . 1 . . . . Botnet 53 | . . . 2 . 4 . 4 . 5 . . . . 3 . 6 . . . . 8 . 4 . . . . 3 . 3 . 2 2 7 . . Disrupt 3 | . . . . . . . . . 1 . . . . . . 1 . . . . . . . . . . . . . . . . . 1 . . Operators 1 | . . . . . . . . . . . . . . . . . . . . . . . . . . . . . . . . . . 1 . . Skim 79 | . 3 . 5 . 5 . 5 . 6 . . . . 8 . 6 . . . . 10 . 5 . . . . 5 . 5 4 2 5 5 . . Override 2 | . . . . . . . . 1 . . . . . . . . . . . . . . . . . . . . 1 . . . . . . . Fabricators 14 | . . . . . 1 . 2 . 1 . . . . 2 . 2 . . . . 2 . . . . . . 3 . . . . . 1 . . Prioritize 5 | . . . . . . . 1 . . . . . . 1 . 1 . . . . 1 . . . . . . 1 . . . . . . . . Liberate 1 | . . . . . . . . . . . . . . 1 . . . . . . . . . . . . . . . . . . . . . . Overload 1 | . . . . . . . 1 . . . . . . . . . . . . . . . . . . . . . . . . . . . . . Recompile 7 | . . . . . 1 . . . 1 . . . . . . 1 . . . . 1 . . . . . . 2 . . . . . 1 . . Repair Stations 5 | . . . . . . . . . . . . . . . . 2 . . . . 1 . . . . . . . . 1 1 . . . . . Patch 5 | . . . . . . . . . . . . . . . . 2 . . . . 1 . . . . . . . . 1 1 . . . . . Recycling Units 56 | . 2 . 6 . 3 . 7 . 7 . . . . 6 . 7 . . . . 4 . 6 . . . . 4 . 3 . . . 1 . . Tunnel 9 | . 2 . 6 . 1 . . . . . . . . . . . . . . . . . . . . . . . . . . . . . . . Fedlink 46 | . . . . . 2 . 7 . 7 . . . . 6 . 7 . . . . 4 . 6 . . . . 3 . 3 . . . 1 . . Scrapoids 1 | . . . . . . . . . . . . . . . . . . . . . . . . . . . . 1 . . . . . . . . Scanalyzers . | . . . . . . . . . . . . . . . . . . . . . . . . . . . . . . . . . . . . . Garrison Access 8 | . . . . . 1 . 1 . 1 . . . . 1 . . . . . . 1 . 1 . . . . . . . . . 1 1 . . Reprogram 1 | . . . . . . . 1 . . . . . . . . . . . . . . . . . . . . . . . . . . . . . Jam 7 | . . . . . 1 . . . 1 . . . . 1 . . . . . . 1 . 1 . . . . . . . . . 1 1 . . Data Cores Recovered 3 | . . . . . 1 . . . . . . . . . . 1 . . . . . . . . . . . . . . . . . . 1 . Used . | . . . . . . . . . . . . . . . . . . . . . . . . . . . . . . . . . . . . . Hacking Detections 157 | . 4 . 8 . 10 . 18 . 11 . . . . 13 . 17 . . . . 18 . 8 . . . . 11 1 12 5 3 8 9 1 . Full Trace Events 16 | . . . . . 1 . 2 . 1 . . . . . . 1 . . . . 2 . 2 . . . . . . 2 . . 3 2 . . Feedback Events 1 | . . . . . . . . . . . . . . . . . . . . . . . . . . . . . . . . . . 1 . . Corruption 1 | . . . . . . . . . . . . . . . . . . . . . . . . . . . . . . . . . . 1 . . Feedback Blocked . | . . . . . . . . . . . . . . . . . . . . . . . . . . . . . . . . . . . . . Robot Schematics Acquired 6 | . . . . . . . 1 . . . . 3 . . . . . . . . . . . . . . . . . . . . . 2 . . Robots Built . | . . . . . . . . . . . . . . . . . . . . . . . . . . . . . . . . . . . . . Authchips . | . . . . . . . . . . . . . . . . . . . . . . . . . . . . . . . . . . . . . Time . | . . . . . . . . . . . . . . . . . . . . . . . . . . . . . . . . . . . . . Total Robot Build Rating . | . . . . . . . . . . . . . . . . . . . . . . . . . . . . . . . . . . . . . Part Schematics Acquired 34 | . . . 2 . 3 . 1 . 1 . . 15 . . . 1 . . . . 1 . 1 . . 4 . . . . . . . 5 . . Parts Built 11 | . . . . . . . 1 . . . . . . 2 . 1 . . . . 2 . . . . . . 1 . . . . . 4 . . Authchips 7 | . . . . . . . 1 . . . . . . 1 . 1 . . . . 1 . . . . . . 1 . . . . . 2 . . Time 390 | . . . . . . . 36 . . . . . . 53 . 42 . . . . 58 . . . . . . 46 . . . . . 155 . . Total Part Build Rating 66 | . . . . . . . 3 . . . . . . 12 . 6 . . . . 14 . . . . . . 7 . . . . . 24 . . Parts Repaired 14 | . . . . . . . 3 . . . . . . 1 . 2 . . . . 4 . 1 . . . . 1 . 1 . . . 1 . . Time 543 | . . . . . . . 83 . . . . . . 16 . 91 . . . . 159 . 56 . . . . 40 . 49 . . . 49 . . Parts Recycled . | . . . . . . . . . . . . . . . . . . . . . . . . . . . . . . . . . . . . . Recycled Matter . | . . . . . . . . . . . . . . . . . . . . . . . . . . . . . . . . . . . . . Retrieved Matter . | . . . . . . . . . . . . . . . . . . . . . . . . . . . . . . . . . . . . . Retrieved Components 4 | . . . 4 . . . . . . . . . . . . . . . . . . . . . . . . . . . . . . . . . Parts Scanalyzed 5 | . . . . . 3 . 1 . 1 . . . . . . . . . . . . . . . . . . . . . . . . . . . Part Schematics Acquired 5 | . . . . . 3 . 1 . 1 . . . . . . . . . . . . . . . . . . . . . . . . . . . Parts Damaged . | . . . . . . . . . . . . . . . . . . . . . . . . . . . . . . . . . . . . . Bothacking | -11 -10 -10 -8 -8 -6 -6 -6 -6 -6 -6 -6 -6 -5 -5 -5 -5 -5 -5 -5 -4 -4 -4 -4 -4 -4 -4 -3 -3 -3 -3 -3 -2 -2 -2 -1 -1 ------------ Run | Yrd Mat Sub Rec Scr Fac Was Fac Gar Fac Low Low Zio Pro Fac Was Fac Upp Upp War Pro Fac Was Fac Upp Upp Zhi Pro Res Gar Res Tes Res Qua Frg Acc Com Used RIF Installer . | . . . . . . . . . . . . . . . . . . . . . . . . . . . . . . . . . . . . . Robots Hacked 2 | . . . . . . . . . . . . . . . . . . . . . 2 . . . . . . . . . . . . . . . Non-combat 2 | . . . . . . . . . . . . . . . . . . . . . 2 . . . . . . . . . . . . . . . Combat . | . . . . . . . . . . . . . . . . . . . . . . . . . . . . . . . . . . . . . Robot Hacks Applied 2 | . . . . . . . . . . . . . . . . . . . . . 2 . . . . . . . . . . . . . . . find_chute 2 | . . . . . . . . . . . . . . . . . . . . . 2 . . . . . . . . . . . . . . . Relay Couplers Released 4 | . . . . . . . . 3 . . . . . . . . . . . . . . . . . . . . . . . . . 1 . . Machine Destruction 4 | . . . . . . . . 3 . . . . . . . . . . . . . . . . . . . . . . . . . 1 . . Fabnet Peak Effective % . | . . . . . . . . . . . . . . . . . . . . . . . . . . . . . . . . . . . . . Robots Rewired 8 | . . . . . . . . . . . 3 . . . . . . . 5 . . . . . . . . . . . . . . . . . Allies Hacked . | . . . . . . . . . . . . . . . . . . . . . . . . . . . . . . . . . . . . . Hacks Repelled . | . . . . . . . . . . . . . . . . . . . . . . . . . . . . . . . . . . . . . Allies | -11 -10 -10 -8 -8 -6 -6 -6 -6 -6 -6 -6 -6 -5 -5 -5 -5 -5 -5 -5 -4 -4 -4 -4 -4 -4 -4 -3 -3 -3 -3 -3 -2 -2 -2 -1 -1 -------- Run | Yrd Mat Sub Rec Scr Fac Was Fac Gar Fac Low Low Zio Pro Fac Was Fac Upp Upp War Pro Fac Was Fac Upp Upp Zhi Pro Res Gar Res Tes Res Qua Frg Acc Com Total Allies 87 | . . 9 . . . 19 4 1 2 . 7 . . 14 1 4 . . 5 . 1 . 2 . . . . 12 . 2 . 1 . . 3 . Largest Group 19 | . . 9 6 5 . 19 13 3 2 . 7 7 7 6 1 3 . . 5 5 3 . 1 . . . . 5 . 1 . 1 . . 3 . Highest-Rated Group 684 | . . 171 114 95 . 684 509 87 36 . 411 411 411 375 31 243 . . 234 234 139 . 45 . . . . 320 . 45 . 10 . . 379 . Highest-Rated Ally 135 | . . 19 19 19 . 50 50 46 26 . 81 81 81 81 31 81 . . 49 49 49 . 45 . . . . 81 . 45 . 10 . . 135 . Total Orders 2 | . . . . . . . . . . . . . . . . . . . 2 . . . . . . . . . . . . . . . . . STAY 1 | . . . . . . . . . . . . . . . . . . . 1 . . . . . . . . . . . . . . . . . FOLLOW 1 | . . . . . . . . . . . . . . . . . . . 1 . . . . . . . . . . . . . . . . . Ally Attacks 519 | . . 17 9 8 . 142 93 32 . . 4 . 19 64 . 9 . . 2 29 8 . . . . . . 81 . . . . . . 2 . Total Damage 14521 | . . 176 153 146 . 4394 1996 512 . . 253 . 970 1916 . 670 . . 20 1129 155 . . . . . . 2031 . . . . . . . . Kills 96 | . . 6 3 1 . 9 18 4 . . 3 . 6 21 . 3 . . . 5 . . . . . . . 17 . . . . . . . . Allies Corrupted 1 | . . . . . . . . . . . . . . . . . . . . . . . . . . . . . . . . . . . 1 . Allies Melted 2 | . . . . . . . . . . . . . . . . . . . . . . . . . . . . . . . . . . 2 . . Intel | -11 -10 -10 -8 -8 -6 -6 -6 -6 -6 -6 -6 -6 -5 -5 -5 -5 -5 -5 -5 -4 -4 -4 -4 -4 -4 -4 -3 -3 -3 -3 -3 -2 -2 -2 -1 -1 ------- Run | Yrd Mat Sub Rec Scr Fac Was Fac Gar Fac Low Low Zio Pro Fac Was Fac Upp Upp War Pro Fac Was Fac Upp Upp Zhi Pro Res Gar Res Tes Res Qua Frg Acc Com Active Infowar (turns) 18927 | 34 717 460 . 832 525 209 941 157 1031 79 351 328 209 554 24 1187 118 214 364 270 1143 160 790 87 70 76 211 689 53 829 417 74 866 4361 377 120 Optics 2783 | . . . . 17 . . . . . . . . . . . . . . . . . . . . . . . . . . . . 256 2510 . . Sensors 13117 | . . . . . 358 209 726 157 1028 1 . . . . . 282 118 214 364 270 1143 160 790 87 70 76 211 689 2 829 417 74 807 3545 377 113 IFF 125 | . . . . . 125 . . . . . . . . . . . . . . . . . . . . . . . . . . . . . . . Terrain 9522 | . . . . . . . . . 954 79 351 328 209 554 . 1172 118 214 218 270 1032 160 790 87 70 61 87 511 . 827 408 74 790 158 . . Structural 5428 | . 199 460 . 815 525 209 920 23 76 . . . . . 24 15 . . . . . . . . . . 114 175 . . . . . 1873 . . Seismic 1646 | 34 717 460 . . . . . . . . . . . . . 435 . . . . . . . . . . . . . . . . . . . . Machine Analysis 1322 | . . . . . 257 209 856 . . . . . . . . . . . . . . . . . . . . . . . . . . . . . Cloaking 3717 | . . . . . . . . . . . . . . . . . . . 142 . . . . . . . . 61 53 2 . . 47 2959 377 76 Jamming 199 | . . . . . . . . . . . . . . . . . . . . . . . . . . . . . . . . . . . 79 120 ECM 3862 | . . . . . . . . . . . . . . . . . . . . . 650 123 786 87 70 76 211 689 30 241 330 42 378 . 149 . Robot Analysis Total 14 | . . . . 8 . . 2 . . . . . . . . . . . . . . . . . . 4 . . . . . . . . . . Derelict Logs Recovered 11 | . . 1 . 4 . . . . . 2 1 1 1 . . . . . . . . . . 1 . . . . . . . . . . . . Drone Launches 9 | . . . . 6 3 . . . . . . . . . . . . . . . . . . . . . . . . . . . . . . . Drone Recoveries 6 | . . . . 3 3 . . . . . . . . . . . . . . . . . . . . . . . . . . . . . . . Exploration | -11 -10 -10 -8 -8 -6 -6 -6 -6 -6 -6 -6 -6 -5 -5 -5 -5 -5 -5 -5 -4 -4 -4 -4 -4 -4 -4 -3 -3 -3 -3 -3 -2 -2 -2 -1 -1 ------------- Run | Yrd Mat Sub Rec Scr Fac Was Fac Gar Fac Low Low Zio Pro Fac Was Fac Upp Upp War Pro Fac Was Fac Upp Upp Zhi Pro Res Gar Res Tes Res Qua Frg Acc Com Turns Passed 21415 | 90 717 1431 704 1433 532 209 941 157 1031 79 351 328 209 571 24 1187 118 214 364 270 1143 160 790 87 70 76 211 694 60 829 417 81 874 4404 377 182 Spaces Moved 34759 | 46 443 1046 525 1329 929 285 1665 261 1865 202 476 661 208 1223 87 2491 232 395 554 197 1927 187 1402 271 218 225 332 1765 141 1824 731 232 1286 8245 576 277 Core 173 | 2 . 2 . 169 . . . . . . . . . . . . . . . . . . . . . . . . . . . . . . . . Treads . | . . . . . . . . . . . . . . . . . . . . . . . . . . . . . . . . . . . . . Legs . | . . . . . . . . . . . . . . . . . . . . . . . . . . . . . . . . . . . . . Wheels 3216 | 44 443 1044 525 1160 . . . . . . . . . . . . . . . . . . . . . . . . . . . . . . . . Hover . | . . . . . . . . . . . . . . . . . . . . . . . . . . . . . . . . . . . . . Flight 31370 | . . . . . 929 285 1665 261 1865 202 476 661 208 1223 87 2491 232 395 554 197 1927 187 1402 271 218 225 332 1765 141 1824 731 232 1286 8245 576 277 Fastest Speed 19 | 50 100 95 125 50 37 34 32 32 32 28 34 34 37 21 24 23 31 31 24 24 20 22 22 22 22 22 22 20 24 24 24 22 19 22 23 23 Average Speed 34 | 97 100 113 125 99 37 34 34 32 33 32 37 36 37 25 24 29 31 31 28 24 22 22 22 22 22 22 22 21 24 24 25 22 22 24 23 30 Slowest Speed 295 | 100 100 250 125 125 40 34 117 32 34 98 117 37 37 112 24 32 31 31 105 24 24 22 22 22 22 22 23 24 24 99 106 25 102 109 23 295 Overloaded Moves 14 | . . . . . . . . . . 4 . . . . . . . . . . . . . . . . . . . . . . 10 . . . Propulsion Burnouts . | . . . . . . . . . . . . . . . . . . . . . . . . . . . . . . . . . . . . . Robots Hopped 142 | . . . . . 9 . 15 . 9 4 . . . 9 4 15 1 . 2 . 7 . 3 . . . . 8 . 23 6 3 1 20 . 3 Potential Cave-ins 180 | . . . . 2 . . 4 . 20 5 . . . 5 . 6 . 1 . . 20 . . . . . 6 4 . 4 13 . 9 71 8 2 Cave-ins Triggered 6 | . . . . . . . . . . 1 . . . . . . . . . . . . . . . . 1 . . . 1 . . 2 1 . Teleports 4 | . . . . . . . . . . . . . . . . . . . . . . . . . . . . . . . . . . 4 . . Exploration Rate (%) 56 | 4 68 75 93 86 36 88 67 44 66 37 70 80 44 41 71 71 43 68 66 40 49 85 42 56 47 62 52 51 40 45 72 13 85 89 16 13 Regions Visited 36 Branch Regions 19 Pre-discovered Areas 36 | . 2 1 9 5 2 . 2 . 1 . 1 . 1 1 . . . . 1 . 4 . 1 . . 3 . . . . . . 1 1 . . Known Exits Taken 23 | . . . 1 . . . 1 . 1 1 1 1 1 . . 1 1 . 1 1 . . 1 1 1 1 1 1 . 1 1 1 1 1 1 . Unknown Exits Taken 5 | 1 1 1 . 1 . . . . . . . . . . . . . 1 . . . . . . . . . . . . . . . . . . Scrap Searched 21 | . . . . 4 . . . . . 2 6 4 1 . . . . 1 . . . . . 1 1 . 1 . . . . . . . . . Spaces Dug 777 | . . 1 . 9 7 . 55 5 84 14 5 . 4 25 . 65 3 10 . . 82 . 58 3 2 . 17 48 1 40 33 7 41 103 41 14 Terrain Destroyed 1148 | 7 . 1 2 7 48 . 55 5 84 14 5 . 4 25 . 65 3 10 1 . 82 . 58 3 2 . 16 48 1 40 33 7 41 426 41 14 Melee 295 | . . . . 1 5 . 27 5 20 2 5 . 2 14 . 44 . 5 . . 25 . 26 1 . . 5 23 1 21 12 2 15 19 11 4 Projectile 49 | . . 1 2 . . . . . . . . . . . . . . . 1 . . . . . . . . . . . . . . 45 . . AOE 347 | 7 . . . . 41 . . . . . . . . . . . . . . . . . . . . . . . . . . . . 299 . . Terrain Rammed . | . . . . . . . . . . . . . . . . . . . . . . . . . . . . . . . . . . . . . Walls Destroyed . | . . . . . . . . . . . . . . . . . . . . . . . . . . . . . . . . . . . . . Machines Disabled . | . . . . . . . . . . . . . . . . . . . . . . . . . . . . . . . . . . . . . Actions | -11 -10 -10 -8 -8 -6 -6 -6 -6 -6 -6 -6 -6 -5 -5 -5 -5 -5 -5 -5 -4 -4 -4 -4 -4 -4 -4 -3 -3 -3 -3 -3 -2 -2 -2 -1 -1 --------- Run | Yrd Mat Sub Rec Scr Fac Was Fac Gar Fac Low Low Zio Pro Fac Was Fac Upp Upp War Pro Fac Was Fac Upp Upp Zhi Pro Res Gar Res Tes Res Qua Frg Acc Com Total 42715 | 66 660 1210 557 1437 1063 397 1921 314 2219 208 629 744 335 1411 84 2855 277 478 758 418 2559 308 1831 296 239 248 463 2020 163 2136 912 250 1833 10286 787 343 Wait 5821 | . 164 66 17 48 78 110 174 38 286 . 102 82 124 127 1 249 43 77 171 221 525 116 358 23 20 5 121 156 17 277 102 14 474 1261 171 3 Move 34453 | 45 442 1045 524 1328 911 284 1634 260 1846 192 475 660 207 1206 79 2461 229 394 550 196 1913 186 1395 270 217 224 330 1750 140 1782 717 225 1283 8208 574 271 Hop 126 | . . . . . 9 . 15 . 9 4 . . . 8 3 14 1 . 1 . 7 . 3 . . . . 7 . 18 6 3 1 14 . 3 Pick Up 199 | 4 1 20 2 20 5 . 3 . 2 . 3 . . 4 . 11 . . 2 . 8 1 2 . . 2 . 13 1 . 7 . 11 64 7 6 Fast Attach 164 | 6 5 5 . 7 10 . 5 . 2 1 2 1 . 7 . 8 . . 5 . 8 1 5 . . 7 . 9 . 5 9 . 6 44 5 1 Attach 213 | . 1 2 . 8 6 . 9 . 16 5 1 . . 4 . 15 2 1 2 . 19 1 14 1 1 . 3 16 . . 2 2 11 54 4 13 Detach 152 | . 1 1 . 2 3 . 8 . 15 2 2 . . 2 . 15 2 1 2 . 14 . 14 1 1 . 3 13 . . 1 . 4 37 . 8 Swap 159 | . 5 8 2 8 3 1 7 2 5 . . . 2 9 1 10 . . 2 1 10 . . . . . . 10 3 19 10 3 9 27 2 . Drop 248 | . 7 9 3 11 10 2 5 . 4 1 1 . . 7 . 15 . . 4 . 9 3 3 . . 8 . 12 1 5 13 . 13 87 7 8 Fire 422 | 11 34 54 9 . 12 . . . . . . . . . . . . . 1 . 2 . . . . . . . . . . . . 273 . 26 Melee 503 | . . . . 4 16 . 61 12 32 2 12 1 2 37 . 54 . 5 . . 42 . 34 1 . 2 5 34 1 30 26 3 21 46 16 4 Ram 1 | . . . . 1 . . . . . . . . . . . . . . . . . . . . . . . . . . . . . . . . Kick . | . . . . . . . . . . . . . . . . . . . . . . . . . . . . . . . . . . . . . Crush . | . . . . . . . . . . . . . . . . . . . . . . . . . . . . . . . . . . . . . Escape Stasis 128 | . . . . . . . . 2 . 1 . . . . . . . . . . . . . . . . 1 . . . 19 . . 104 1 . Rewire 49 | . . . . . . . . . . . 31 . . . . . . . 18 . . . . . . . . . . . . . . . . . Trap . | . . . . . . . . . . . . . . . . . . . . . . . . . . . . . . . . . . . . . Miscellaneous 77 | . . . . . . . . . 2 . . . . . . 3 . . . . 2 . 3 . . . . . . . . . . 67 . . Route ------- -11/Scrapyard -10/Materials (discovered 4 exits: [*Mat x2] / [*Min] / *Sub) -10/Subcaves (discovered 3 exits: [*Mat x2] / *Rec) -8/Recycling (discovered 2 exits: *Fac / *Scr) -8/Scraptown (discovered 2 exits: *Fac x2) -6/Factory (discovered 6 exits: *Fac x4 / *Low x2) -6/Waste -6/Factory (discovered 8 exits: *Fac x4 / *Low x2 / Gar / Gar) -6/Garrison (discovered 3 exits: *Fac x3) -6/Factory (discovered 4 exits: Fac x2 / *Low x2) -6/Lower Caves -6/Lower Caves (discovered 2 exits: Fac / *Zio) -6/Zion (discovered 2 exits: [Dee] / *Pro) -5/Proximity Caves -5/Factory (discovered 4 exits: *Fac x2 / *Upp x2) -5/Waste -5/Factory (discovered 4 exits: *Fac x2 / *Upp x2) -5/Upper Caves -5/Upper Caves (discovered 2 exits: *Fac / *War) -5/Warlord -4/Proximity Caves -4/Factory (discovered 9 exits: Res x4 / Upp x2 / *Ext x2 / Arm) -4/Waste -4/Factory (discovered 8 exits: Res x3 / *Upp x2 / Ext x2 / Arm) -4/Upper Caves -4/Upper Caves (discovered 2 exits: Res / *Zhi) -4/Zhirov -3/Proximity Caves -3/Research (discovered 6 exits: *Res x3 / Tes x2 / Gar) -3/Garrison (discovered 3 exits: *Res x3) -3/Research (discovered 5 exits: *Res x3 / *Tes x2) -3/Testing -2/Research (discovered 2 exits: *Acc / *Qua) -2/Quarantine (discovered 3 exits: Acc / [*Sec] / *Frg) -2/Protoforge -1/Access (discovered 2 exits: *Sur / *Com) -1/Command History --------- Turn | Location | Event 49 | -11/Scrapyard | Discovered new exit (range 15) 91 | -11/Scrapyard | Entered Materials 220 | -10/Materials | Discovered new exit (range 10) 312 | -10/Materials | Build established: Mutant 324 | -10/Materials | Discovered new exit (range 16) 401 | -10/Materials | Discovered new exit (range 11) 591 | -10/Materials | Derelicts attacked the area 765 | -10/Materials | Discovered new exit (range 10) 808 | -10/Materials | Entered Subcaves 881 | -10/Subcaves | Build established: Scavenger-Mutant 920 | -10/Subcaves | Learned location of Zion (-6) 1367 | -10/Subcaves | Ambushed by angry Subdweller bent on revenge 1460 | -10/Subcaves | Visited triangular shrine 1480 | -10/Subcaves | Found Prototype Device 1480 | -10/Subcaves | Identified V3-11A's Pendant 1485 | -10/Subcaves | Befriended Subdweller 1555 | -10/Subcaves | Befriended Subdweller 1558 | -10/Subcaves | Build established: Mutant 1580 | -10/Subcaves | Befriended Subdweller 1580 | -10/Subcaves | Befriended Subdweller 1645 | -10/Subcaves | A swath of the cavern ceiling suddenly collapsed 1695 | -10/Subcaves | Shifting Twisted Machinery released Sub. Machine Gun 1729 | -10/Subcaves | Shifting Twisted Machinery released Sub. Beam Cannon 1782 | -10/Subcaves | Ambushed by Subdwellers from Twisted Machinery 1785 | -10/Subcaves | Befriended Subdweller 1785 | -10/Subcaves | Befriended Subdweller 1920 | -10/Subcaves | Befriended Subdweller 2036 | -10/Subcaves | Visited 4L-MR0's lab 2049 | -10/Subcaves | Found Flightbrick 2132 | -10/Subcaves | Discovered new exit (range 8) 2183 | -10/Subcaves | Discovered new exit (range 7) 2184 | -10/Subcaves | Ambushed by Subdwellers from Twisted Machinery 2185 | -10/Subcaves | Befriended Subdweller 2185 | -10/Subcaves | Befriended Subdweller 2212 | -10/Subcaves | Discovered new exit (range 15) 2239 | -10/Subcaves | Lost 3 allies 2239 | -10/Subcaves | Entered Recycling 2239 | -8/Recycling | Accompanied by 6 allies 2429 | -8/Recycling | Discovered new exit (range 5) 2777 | -8/Recycling | Learned Storage stockpile data 2811 | -8/Recycling | Identified exit to Scraptown 2833 | -8/Recycling | Learned Storage emergency access door positions 2843 | -8/Recycling | Learned location of 1 exit from Lower Caves 2845 | -8/Recycling | Learned location of 3 exits from Factory 2846 | -8/Recycling | Learned 2 Storage zone layouts 2848 | -8/Recycling | Learned location of Extension (-4) 2855 | -8/Recycling | Learned location of 1 exit from Lower Caves 2894 | -8/Recycling | Scanned before Scraplab entrance 2920 | -8/Recycling | Entered Scraplab 2943 | -8/Recycling | Entered Scraptown 2943 | -8/Scraptown | Accompanied by 5 allies 2988 | -8/Scraptown | Heard Great Nut preacher, LISTEN AND RECITE! 3108 | -8/Scraptown | Delivered V3-11A's Pendant to T0-NE2 in exchange for information 3208 | -8/Scraptown | Scanned Subdweller tech in exchange for log data 3210 | -8/Scraptown | Learned location of 1 exit from Research 3213 | -8/Scraptown | Learned location of 1 exit from Proximity Caves 3214 | -8/Scraptown | Learned Factory stockpile data 3280 | -8/Scraptown | Visited UFD Registry 3280 | -8/Scraptown | Registered with UFD as "Fluxsink" 3291 | -8/Scraptown | Visited Shadow of the Wyrm 3312 | -8/Scraptown | Visited IN-MT5's Study 3342 | -8/Scraptown | Discovered new exit (range 11) 3362 | -8/Scraptown | Guru changed UFD alias to "Cogtank" 3620 | -8/Scraptown | Visited The Evicted 3637 | -8/Scraptown | Visited TADAMA 3645 | -8/Scraptown | Visited Spacefarers 3652 | -8/Scraptown | Visited CPS Storage 3720 | -8/Scraptown | Visited Junk Cannon Lab 3739 | -8/Scraptown | Visited DA-N13 Charitable Foundation 3750 | -8/Scraptown | Found DCF Scrap (27 items) 3805 | -8/Scraptown | Visited Analyses Database 3845 | -8/Scraptown | Delivered Scrap Shield to a Scientist 3888 | -8/Scraptown | Visited Botcube Research 3903 | -8/Scraptown | Visited Derelict Rescue Squad 3920 | -8/Scraptown | Visited Curators Association 3953 | -8/Scraptown | Visited Abandonware Association 3962 | -8/Scraptown | Learned abandonware demo "REBOOT5.EXE" 3985 | -8/Scraptown | Visited LU-1G1's Boring Crew 4016 | -8/Scraptown | Visited Cartography Club 4027 | -8/Scraptown | Released all parts (6) 4073 | -8/Scraptown | Found Surveybot 17 Chip 4106 | -8/Scraptown | Found Deep Structural Scanner 4112 | -8/Scraptown | Learned location of Mines (-8) 4112 | -8/Scraptown | Learned location of Storage (-8) 4112 | -8/Scraptown | Learned location of Recycling (-8) 4112 | -8/Scraptown | Learned location of Lower Caves (-6) 4112 | -8/Scraptown | Learned 16 Materials zone layouts 4112 | -8/Scraptown | Learned 12 Factory zone layouts 4112 | -8/Scraptown | Learned 16 Factory zone layouts 4112 | -8/Scraptown | Learned 24 Factory zone layouts 4112 | -8/Scraptown | Learned 4 Access zone layouts 4112 | -8/Scraptown | Learned 4 Mines zone layouts 4112 | -8/Scraptown | Learned 4 Storage zone layouts 4112 | -8/Scraptown | Learned 8 Lower Caves zone layouts 4112 | -8/Scraptown | Learned 16 Proximity Caves zone layouts 4112 | -8/Scraptown | Learned 20 Proximity Caves zone layouts 4112 | -8/Scraptown | Learned location of 2 exits from Factory 4112 | -8/Scraptown | Learned location of 1 exit from Research 4216 | -8/Scraptown | Met Optimus 4216 | -8/Scraptown | Accepted into 0bPrime 4302 | -8/Scraptown | Civil war broke out across Scraptown 4307 | -8/Scraptown | Found Prototype Special Weapon 4307 | -8/Scraptown | Identified LU-1G1's Laser Shovel 4366 | -8/Scraptown | Core integrity fell below 50% 4374 | -8/Scraptown | Discovered new exit (range 4) 4375 | -8/Scraptown | Core integrity fell below 20% 4376 | -8/Scraptown | Entered Factory 4376 | -6/Factory | Accompanied by 3 allies 4376 | -6/Factory | Evolved 8 slots: Propulsion x4, Utility x4 4377 | -6/Factory | Identified exit to Lower Caves 4377 | -6/Factory | Attached Flightbrick, gained temporary slots: Utility x3 4378 | -6/Factory | Identified exit to Factory 4383 | -6/Factory | Lost 11 allies 4477 | -6/Factory | Loaded intel: 8 recycling unit locations 4600 | -6/Factory | Learned location of Protoforge (-2) 4649 | -6/Factory | Destroyed 9 combat bots 4726 | -6/Factory | First assault squad dispatched 4908 | -6/Factory | Manually triggered Chute Trap 4908 | -6/Factory | Sucked down chute 4908 | -6/Factory | Entered Waste 4912 | -6/Waste | Spotted C-40 Crusher 4917 | -6/Waste | Warlord forces began an assault 4966 | -6/Waste | Spotted C-40 Crusher 4977 | -6/Waste | Allies destroyed C-40 Crusher 4978 | -6/Waste | Spotted C-40 Crusher 4979 | -6/Waste | Allies destroyed C-40 Crusher 4980 | -6/Waste | Spotted C-40 Crusher 4984 | -6/Waste | Allies destroyed C-40 Crusher 4991 | -6/Waste | Allies destroyed C-40 Crusher 4993 | -6/Waste | Spotted C-40 Crusher 5000 | -6/Waste | Spotted C-40 Crusher 5020 | -6/Waste | Allies destroyed C-40 Crusher 5022 | -6/Waste | Allies destroyed C-40 Crusher 5043 | -6/Waste | Discovered new exit (range 13) 5044 | -6/Waste | Lost 6 allies 5071 | -6/Waste | Identified exit to Factory 5086 | -6/Waste | Build established: Hacker-Scout 5117 | -6/Waste | Entered Factory 5117 | -6/Factory | Accompanied by 13 allies 5136 | -6/Factory | Discovered exit to Lower Caves (range 12) 5231 | -6/Factory | Loaded intel: 8 recycling unit locations 5287 | -6/Factory | Repaired Multitool 5401 | -6/Factory | Discovered exit to Factory (range 14) 5509 | -6/Factory | Repaired Hammer 5513 | -6/Factory | Fabricated Hacking Suite? 5720 | -6/Factory | Learned location of 1 exit from Upper Caves 5732 | -6/Factory | Discovered exit to Factory (range 15) 5766 | -6/Factory | Learned Extension garrison access intel 5770 | -6/Factory | Identified exit to Garrison 5780 | -6/Factory | Discovered exit to Factory (range 5) 5802 | -6/Factory | Learned location of 2 exits from Lower Caves 5817 | -6/Factory | Search patrols dispatched 5821 | -6/Factory | Discovered exit to Factory (range 14) 5847 | -6/Factory | Learned location of 1 exit from Cetus 5853 | -6/Factory | Learned location of 1 exit from Proximity Caves 5859 | -6/Factory | Loaded intel: 82 trap records 5874 | -6/Factory | Learned location of Upper Caves (-4) 5889 | -6/Factory | Repaired Nuclear Pulse Thruster 5894 | -6/Factory | Central database locked down 5897 | -6/Factory | Learned location of Warlord (-5) 5932 | -6/Factory | Learned Extension emergency access door positions 6047 | -6/Factory | Identified exit to Garrison 6058 | -6/Factory | Entered Garrison 6058 | -6/Garrison | Accompanied by 3 allies 6096 | -6/Garrison | Garrison Relay disabled 6117 | -6/Garrison | Rescued a captive Derelict 6184 | -6/Garrison | Identified exit to Factory 6197 | -6/Garrison | Spotted B-75 Beast 6215 | -6/Garrison | Entered Factory 6397 | -6/Factory | Loaded intel: 8 recycling unit locations 6558 | -6/Factory | Discovered exit to Factory (range 12) 6565 | -6/Factory | First assault squad dispatched 6565 | -6/Factory | Discovered exit to Lower Caves (range 16) 6889 | -6/Factory | Discovered exit to Lower Caves (range 8) 6915 | -6/Factory | Search patrols dispatched 7024 | -6/Factory | Learned 2 Extension zone layouts 7063 | -6/Factory | Learned Extension trap positions 7094 | -6/Factory | Learned location of 2 exits from Archives 7123 | -6/Factory | Learned location of 1 exit from Extension 7214 | -6/Factory | Learned location of 1 exit from Cetus 7246 | -6/Factory | Entered Lower Caves 7247 | -6/Lower Caves | Identified exit to Lower Caves 7247 | -6/Lower Caves | Spotted B-75 Beast 7248 | -6/Lower Caves | UFD Scientist delivered a prototype 7248 | -6/Lower Caves | Found Prototype Protection 7248 | -6/Lower Caves | Identified Enh. Scrap Shield 7256 | -6/Lower Caves | Learned Factory emergency access door positions 7286 | -6/Lower Caves | Learned location of 1 exit from Factory 7304 | -6/Lower Caves | Encountered a Warlord checkpoint 7315 | -6/Lower Caves | Crushed by falling debris 7325 | -6/Lower Caves | Entered another Lower Caves area 7326 | -6/Lower Caves | Identified exit to Zion 7346 | -6/Lower Caves | Lost 3 parts (1p1n1u) 7387 | -6/Lower Caves | Entered an active Warlord outpost 7395 | -6/Lower Caves | Learned Factory trap positions 7395 | -6/Lower Caves | Learned Extension emergency access door positions 7449 | -6/Lower Caves | Attacked by a delusional Derelict stockpiling parts 7458 | -6/Lower Caves | Prototype Device suddenly appears! 7483 | -6/Lower Caves | Found Prototype Device 7483 | -6/Lower Caves | Identified Amulet of Y3-NDR 7496 | -6/Lower Caves | Joined by bewildered Wizard 7498 | -6/Lower Caves | Joined by bewildered Wizard 7501 | -6/Lower Caves | Joined by bewildered Wizard 7565 | -6/Lower Caves | Joined by bewildered Wizard 7618 | -6/Lower Caves | Build established: Mutant 7676 | -6/Lower Caves | Entered Zion 7676 | -6/Zion | Accompanied by 7 allies 7677 | -6/Zion | Identified exit to Proximity Caves 7699 | -6/Zion | Given the Hacking Drone Bay 7711 | -6/Zion | Given A8's code to call for help 7717 | -6/Zion | System corruption cleaned by Quarantine Array 7792 | -6/Zion | Discovered new exit (range 18) 7803 | -6/Zion | Learned Factory emergency access door positions 7833 | -6/Zion | Turned away by Imprinter 7876 | -6/Zion | Found CR-A16's Pointy Stick 8004 | -6/Zion | Entered Proximity Caves 8004 | -5/Proximity Caves | Accompanied by 7 allies 8020 | -5/Proximity Caves | Spotted B-75 Beast 8213 | -5/Proximity Caves | Entered Factory 8213 | -5/Factory | Accompanied by 6 allies 8213 | -5/Factory | Evolved 2 slots: Power x1, Propulsion x1 8214 | -5/Factory | Identified exit to Upper Caves 8215 | -5/Factory | Identified exit to Factory 8216 | -5/Factory | Loaded intel: 74 trap records 8269 | -5/Factory | Loaded intel: 8 recycling unit locations 8359 | -5/Factory | Lost 3 allies 8397 | -5/Factory | Joined by bewildered Wizard 8412 | -5/Factory | Learned Quarantine security intel 8425 | -5/Factory | Repaired VTOL Module 8448 | -5/Factory | Learned location of 2 exits from Proximity Caves 8462 | -5/Factory | Lost 3 allies 8488 | -5/Factory | Joined by bewildered Wizard 8488 | -5/Factory | Joined by bewildered Wizard 8488 | -5/Factory | Joined by bewildered Wizard 8493 | -5/Factory | Learned Research security intel 8503 | -5/Factory | Learned 2 Armory zone layouts 8507 | -5/Factory | Fabricated Field Propulsion Drive (x2) 8514 | -5/Factory | Joined by bewildered Wizard 8516 | -5/Factory | Learned Testing scanalyzer intel 8540 | -5/Factory | Learned 2 Extension zone layouts 8623 | -5/Factory | Spotted B-75 Beast 8784 | -5/Factory | Manually triggered Chute Trap 8784 | -5/Factory | Sucked down chute 8784 | -5/Factory | Entered Waste 8785 | -5/Waste | Met a frightened Derelict 8785 | -5/Waste | Identified exit to Factory 8787 | -5/Waste | Lost 3 allies 8794 | -5/Waste | Spotted C-40 Crusher 8794 | -5/Waste | Spotted C-40 Crusher 8796 | -5/Waste | Spotted C-40 Crusher 8798 | -5/Waste | Spotted C-40 Crusher 8799 | -5/Waste | EMP discharged 8803 | -5/Waste | Spotted C-40 Crusher 8803 | -5/Waste | Spotted C-40 Crusher 8805 | -5/Waste | Build established: Hacker-Sprinter 8808 | -5/Waste | Entered Factory 8825 | -5/Factory | Loaded intel: 8 recycling unit locations 8952 | -5/Factory | Spotted B-75 Beast 8973 | -5/Factory | Discovered exit to Factory (range 15) 9133 | -5/Factory | Learned 4 Research zone layouts 9202 | -5/Factory | Learned 2 Extension zone layouts 9207 | -5/Factory | Repaired Broken Nuclear Pulse Thruster 9261 | -5/Factory | Learned 4 Proximity Caves zone layouts 9371 | -5/Factory | Learned Research terminal intel 9432 | -5/Factory | Fabricated Fusion Reactor (x1) 9451 | -5/Factory | Loaded intel: 74 trap records 9549 | -5/Factory | Discovered exit to Upper Caves (range 5) 9578 | -5/Factory | Joined by bewildered Wizard 9579 | -5/Factory | Joined by bewildered Wizard 9582 | -5/Factory | Repaired Field Propulsion Drive 9583 | -5/Factory | Joined by bewildered Wizard 9605 | -5/Factory | Cargo convoy interrupted 9651 | -5/Factory | Discovered exit to Upper Caves (range 18) 9995 | -5/Factory | Entered Upper Caves 9996 | -5/Upper Caves | Identified exit to Upper Caves 10078 | -5/Upper Caves | Acquired the password to a Derelict Tinkerer's latest research 10113 | -5/Upper Caves | Entered another Upper Caves area 10173 | -5/Upper Caves | Build established: Hacker-Scout 10188 | -5/Upper Caves | Spotted B-75 Beast 10325 | -5/Upper Caves | Discovered new exit (range 7) 10327 | -5/Upper Caves | Entered Warlord 10328 | -5/Warlord | Identified exit to Proximity Caves 10337 | -5/Warlord | System corruption cleaned by Quarantine Array 10347 | -5/Warlord | Learned Armory stockpile data 10347 | -5/Warlord | Learned 4 Armory zone layouts 10347 | -5/Warlord | Learned 4 Quarantine zone layouts 10348 | -5/Warlord | Learned Testing security intel 10348 | -5/Warlord | Learned Factory terminal intel 10348 | -5/Warlord | Learned Armory terminal intel 10348 | -5/Warlord | Learned Armory scanalyzer intel 10466 | -5/Warlord | Visited the Vortex Lab 10468 | -5/Warlord | Found Prototype Energy Cannon 10468 | -5/Warlord | Identified Vortex Driver 10471 | -5/Warlord | Found Vortex Driver 10488 | -5/Warlord | Warlord's base attacked by MAIN.C 10496 | -5/Warlord | Found Prototype Device 10496 | -5/Warlord | Identified Exp. Cloaking Device 10524 | -5/Warlord | Rebuked by Warlord 10634 | -5/Warlord | Opened side exit 10691 | -5/Warlord | Entered Proximity Caves 10691 | -4/Proximity Caves | Accompanied by 5 allies 10961 | -4/Proximity Caves | Entered Factory 10961 | -4/Factory | Accompanied by 3 allies 10961 | -4/Factory | Evolved 2 slots: Utility x2 10962 | -4/Factory | Identified exit to Research 10962 | -4/Factory | Identified exit to Upper Caves 10962 | -4/Factory | Identified exit to Extension 10962 | -4/Factory | Identified exit to Armory 10963 | -4/Factory | Loaded intel: 28 terminal locations 11061 | -4/Factory | Repaired Nuclear Pulse Array 11112 | -4/Factory | Repaired Adv. Terrain Scanner 11150 | -4/Factory | Loaded intel: 8 recycling unit locations 11302 | -4/Factory | Learned 2 Proximity Caves zone layouts 11325 | -4/Factory | Repaired Field Propulsion Drive 11340 | -4/Factory | Learned Research stockpile data 11345 | -4/Factory | Learned Research emergency access door positions 11346 | -4/Factory | Learned Quarantine stockpile data 11347 | -4/Factory | Learned 2 Armory zone layouts 11356 | -4/Factory | Learned location of 2 exits from Research 11401 | -4/Factory | Learned location of 1 exit from Proximity Caves 11647 | -4/Factory | Build established: Hacker-Ninja 11716 | -4/Factory | Spotted B-86 Titan 11793 | -4/Factory | Learned Research terminal intel 11829 | -4/Factory | Fabricated Lrn. Sensor Array? 11835 | -4/Factory | Learned location of 1 exit from Upper Caves 11890 | -4/Factory | Learned 2 Proximity Caves zone layouts 11903 | -4/Factory | Learned location of 3 exits from Research 11918 | -4/Factory | Learned Armory terminal intel 11941 | -4/Factory | Learned location of 1 exit from Proximity Caves 11994 | -4/Factory | Repaired Nuclear Pulse Thruster 12104 | -4/Factory | Manually triggered Chute Trap 12104 | -4/Factory | Sucked down chute 12104 | -4/Factory | Entered Waste 12104 | -4/Waste | The area was eerily silent 12137 | -4/Waste | Discovered new exit (range 13) 12148 | -4/Waste | Identified exit to Factory 12264 | -4/Waste | Entered Factory 12309 | -4/Factory | Loaded intel: 8 recycling unit locations 12447 | -4/Factory | Repaired Field Propulsion Drive 12522 | -4/Factory | Discovered exit to Research (range 16) 12549 | -4/Factory | Discovered exit to Research (range 18) 12845 | -4/Factory | Discovered exit to Research (range 16) 12883 | -4/Factory | Learned Testing emergency access door positions 12921 | -4/Factory | Discovered exit to Upper Caves (range 12) 12925 | -4/Factory | Learned Testing scanalyzer intel 12983 | -4/Factory | Loaded intel: 4 scanalyzer locations 13002 | -4/Factory | Learned Testing security intel 13003 | -4/Factory | Learned Research emergency access door positions 13004 | -4/Factory | Loaded intel: 72 trap records 13013 | -4/Factory | Learned Research emergency access door positions 13054 | -4/Factory | Spotted B-86 Titan 13054 | -4/Factory | Entered Upper Caves 13055 | -4/Upper Caves | Identified exit to Upper Caves 13087 | -4/Upper Caves | Learned Research stockpile data 13125 | -4/Upper Caves | Learned Extension terminal intel 13125 | -4/Upper Caves | Learned Armory stockpile data 13125 | -4/Upper Caves | Learned Research emergency access door positions 13141 | -4/Upper Caves | Entered another Upper Caves area 13158 | -4/Upper Caves | Entered a destroyed Warlord outpost 13197 | -4/Upper Caves | Discovered new exit (range 14) 13199 | -4/Upper Caves | Identified exit to Zhirov 13211 | -4/Upper Caves | Entered Zhirov 13211 | -4/Zhirov | Discovered new exit (range 3) 13212 | -4/Zhirov | Identified exit to Proximity Caves 13215 | -4/Zhirov | Met Zhirov 13223 | -4/Zhirov | Zhirov requested help retrieving the SGEMP Prototype 13227 | -4/Zhirov | Found Alien Artifact 13227 | -4/Zhirov | Identified Integrated Dissipator 13227 | -4/Zhirov | Installed Integrated Dissipator, increased core heat dissipation (+20) 13250 | -4/Zhirov | Found Alien Artifact 13287 | -4/Zhirov | Entered Proximity Caves 13374 | -3/Proximity Caves | Crushed by falling debris 13496 | -3/Proximity Caves | Attracted the attention of an 0b10 checkpoint 13498 | -3/Proximity Caves | Entered Research 13498 | -3/Research | Evolved 2 slots: Utility x2 13499 | -3/Research | Identified exit to Testing 13500 | -3/Research | Identified exit to Research 13505 | -3/Research | Loaded intel: 23 terminal locations 13580 | -3/Research | Joined by bewildered Wizard 13582 | -3/Research | Joined by bewildered Wizard 13584 | -3/Research | Joined by bewildered Wizard 13598 | -3/Research | Repaired Cold Fusion Reactor 13649 | -3/Research | Joined by bewildered Wizard 13650 | -3/Research | Loaded intel: 5 recycling unit locations 13673 | -3/Research | Build established: Hacker-Sprinter 13675 | -3/Research | Joined by bewildered Wizard 13676 | -3/Research | Joined by bewildered Wizard 13686 | -3/Research | Found Prototype Processor 13686 | -3/Research | Identified Spectral Analyzer 13724 | -3/Research | Spotted B-86 Titan 13831 | -3/Research | Spotted B-86 Titan 13927 | -3/Research | Fabricated Adv. Gravity Neutralizer? 13989 | -3/Research | Build established: Hacker-Ninja 14114 | -3/Research | Learned location of 2 exits from Research 14139 | -3/Research | Scrapoids reinforcements arrived? 14192 | -3/Research | Identified exit to Garrison 14192 | -3/Research | Entered Garrison 14219 | -3/Garrison | Identified exit to Research 14219 | -3/Garrison | Spotted B-86 Titan 14238 | -3/Garrison | Triggered checkpoint 14252 | -3/Garrison | Entered Research 14256 | -3/Research | Loaded intel: 23 terminal locations 14428 | -3/Research | Loaded intel: 5 recycling unit locations 14679 | -3/Research | Repaired Adv. Gravity Neutralizer 14794 | -3/Research | Found Prototype Device 14794 | -3/Research | Identified Exp. Thermal Shield 15081 | -3/Research | Entered Testing 15083 | -3/Testing | Loaded intel: 3 scanalyzer locations 15087 | -3/Testing | Found Prototype Energy Cannon 15087 | -3/Testing | Identified Imp. Potential Cannon 15090 | -3/Testing | Found Prototype Energy Cannon 15090 | -3/Testing | Identified Potential Cannon 15115 | -3/Testing | Found Spectral Analyzer 15129 | -3/Testing | Discovered exit to Research (range 9) 15295 | -3/Testing | Found Prototype Device 15295 | -3/Testing | Identified Exp. Focal Shield 15335 | -3/Testing | Found Portable AFG 15369 | -3/Testing | Spotted Striker 15369 | -3/Testing | Spotted Striker 15394 | -3/Testing | Stole the SGEMP Prototype 15395 | -3/Testing | Crushed by falling debris 15484 | -3/Testing | Spotted PH-1G9DAF477K 15498 | -3/Testing | Entered Research 15498 | -2/Research | Evolved 2 slots: Propulsion x1, Utility x1 15502 | -2/Research | Discovered new exit (range 7) 15506 | -2/Research | Identified exit to Access 15576 | -2/Research | Discovered new exit (range 9) 15577 | -2/Research | Spotted B-90 Cyclops 15579 | -2/Research | Identified exit to Quarantine 15579 | -2/Research | Entered Quarantine 15606 | -2/Quarantine | Found Alien Artifact 15606 | -2/Quarantine | Identified Phase Redirector 15734 | -2/Quarantine | Cryocooling Duct disabled 15746 | -2/Quarantine | Found Alien Slashing Weapon 15746 | -2/Quarantine | Identified Sigix Broadsword 15749 | -2/Quarantine | Ambient heat levels rising (+20) 15749 | -2/Quarantine | Non-combat units ordered to evacuate 15786 | -2/Quarantine | Cryocooling Duct disabled 15801 | -2/Quarantine | Ambient heat levels rising (+20) 15801 | -2/Quarantine | Combat units ordered to evacuate 15901 | -2/Quarantine | Quarantine Guard activated 15910 | -2/Quarantine | Found Alien Artifact 15911 | -2/Quarantine | Identified Subatomic Replicator 15911 | -2/Quarantine | Used Subatomic Replicator to create Alien Artifact 15973 | -2/Quarantine | Spotted Quarantine Guard 16024 | -2/Quarantine | Spotted Quarantine Guard 16146 | -2/Quarantine | Discovered exit to Access (range 15) 16184 | -2/Quarantine | Found Alien Artifact 16184 | -2/Quarantine | Identified Dimensional Node Initializer 16184 | -2/Quarantine | Initialized slip node 16188 | -2/Quarantine | Found Dimensional Node Initializer 16194 | -2/Quarantine | Found Alien Artifact 16199 | -2/Quarantine | Found Alien Artifact 16219 | -2/Quarantine | Spotted Quarantine Guard 16243 | -2/Quarantine | Learned 4 Section 7 zone layouts 16257 | -2/Quarantine | Spotted Quarantine Guard 16277 | -2/Quarantine | Learned location of Section 7 (-2) 16299 | -2/Quarantine | Learned Research emergency access door positions 16301 | -2/Quarantine | Spotted Quarantine Guard 16313 | -2/Quarantine | Spotted Quarantine Guard 16321 | -2/Quarantine | Spotted Quarantine Guard 16420 | -2/Quarantine | Spotted Fortress 16444 | -2/Quarantine | Discovered new exit (range 5) 16444 | -2/Quarantine | Discovered new exit (range 6) 16444 | -2/Quarantine | Spotted Quarantine Guard 16444 | -2/Quarantine | Spotted Quarantine Guard 16452 | -2/Quarantine | Identified exit to Protoforge 16453 | -2/Quarantine | Entered Protoforge 16525 | -2/Protoforge | Crushed by falling debris 16618 | -2/Protoforge | Crushed by falling debris 16619 | -2/Protoforge | System corruption reached 10% 16619 | -2/Protoforge | Spotted EXE-6 16619 | -2/Protoforge | Spotted EXE-6 16625 | -2/Protoforge | Superfortress began startup sequence 16644 | -2/Protoforge | Spotted EXE-6 16645 | -2/Protoforge | Spotted EXE-6 16649 | -2/Protoforge | Lost 3 parts (1n2u) 16660 | -2/Protoforge | UFD initiated attack on Protoforge 16660 | -2/Protoforge | Loaded intel: 3 recycling unit locations 16693 | -2/Protoforge | Found Prototype Processor 16693 | -2/Protoforge | Identified Exp. Armor Integrity Analyzer 16696 | -2/Protoforge | Optimus greeted in Protoforge 16705 | -2/Protoforge | Initialized slip node 16725 | -2/Protoforge | Identified Supercharged TR 16725 | -2/Protoforge | Warped through subspace to slip node 16728 | -2/Protoforge | Spotted Decapitator 16734 | -2/Protoforge | Optimus attacked Superfortress 16738 | -2/Protoforge | Spotted Decapitator 16743 | -2/Protoforge | Spotted Decapitator 16748 | -2/Protoforge | Found Prototype Device 16748 | -2/Protoforge | Identified Cep. Matter Streamer 16750 | -2/Protoforge | Found Prototype Power Core 16750 | -2/Protoforge | Identified Cep. Zero-point Core 16752 | -2/Protoforge | Found Prototype Device 16752 | -2/Protoforge | Identified Exp. Force Field 16755 | -2/Protoforge | Found Prototype Storage 16755 | -2/Protoforge | Identified Cep. Chromion Battery 16757 | -2/Protoforge | Found Prototype Device 16757 | -2/Protoforge | Identified Cep. Antimissile System 16760 | -2/Protoforge | Found Prototype Protection 16760 | -2/Protoforge | Identified Centrium Heavy Armor Plating 16762 | -2/Protoforge | Found Prototype Storage 16762 | -2/Protoforge | Identified Cep. NT7 Matterbank 16765 | -2/Protoforge | Found Prototype Device 16765 | -2/Protoforge | Identified Thermal Barrier 16767 | -2/Protoforge | Found Prototype Ballistic Cannon 16767 | -2/Protoforge | Identified Cep. Helical Railcannon 16774 | -2/Protoforge | Lost 3 parts (1p2u) 16816 | -2/Protoforge | Lost 17 allies 16873 | -2/Protoforge | Fabricated Adv. Gravity Neutralizer (x1) 16995 | -2/Protoforge | Identified Transdimensional Reconstructor (x2) 16996 | -2/Protoforge | Found Prototype Device 16999 | -2/Protoforge | Spotted Immortal 16999 | -2/Protoforge | Spotted Decapitator 16999 | -2/Protoforge | Spotted Decapitator 16999 | -2/Protoforge | Spotted Decapitator 16999 | -2/Protoforge | Spotted Decapitator 17000 | -2/Protoforge | Spotted Immortal 17021 | -2/Protoforge | Found Exp. System Purifier 17259 | -2/Protoforge | Forge Plexus network access discovered 17264 | -2/Protoforge | UFD reported confirmed Drillbomb installation 17287 | -2/Protoforge | Lost 3 allies 17305 | -2/Protoforge | Spotted V288-l 17351 | -2/Protoforge | Found Cep. Antigrav Storage Unit 17353 | -2/Protoforge | Found Cep. Chromion Battery 17357 | -2/Protoforge | Found Cep. NT7 Matterbank 17372 | -2/Protoforge | Spotted Decapitator 17372 | -2/Protoforge | Spotted Decapitator 17387 | -2/Protoforge | Found Cep. Zero-point Core 17414 | -2/Protoforge | Found Faulty Cep. Zero-point Core 17417 | -2/Protoforge | Found Faulty Cep. Zero-point Core 17620 | -2/Protoforge | Lost 3 allies 17682 | -2/Protoforge | Found Cep. Smart ZDS 17685 | -2/Protoforge | Found Cep. EMP Blanket Launcher 17697 | -2/Protoforge | Destroyed Decapitator 17697 | -2/Protoforge | Destroyed Decapitator 17700 | -2/Protoforge | Destroyed Decapitator 17702 | -2/Protoforge | Destroyed Decapitator 17716 | -2/Protoforge | Scanned by Researcher 17726 | -2/Protoforge | UFD reported confirmed Drillbomb installation 17733 | -2/Protoforge | Found Cep. Miniperforator 17802 | -2/Protoforge | Spotted Executioner 17809 | -2/Protoforge | Destroyed Executioner 17816 | -2/Protoforge | Found Exp. Core Analyzer 17977 | -2/Protoforge | Found Cep. Fieldthrust Drive 17985 | -2/Protoforge | Found Faulty Cep. Fieldthrust Drive 18133 | -2/Protoforge | Spotted Executioner 18136 | -2/Protoforge | P-80 Master assimilated allied Z0-0E4(j) 18173 | -2/Protoforge | Lost 4 allies 18195 | -2/Protoforge | Spotted Executioner 18197 | -2/Protoforge | P-80 Master assimilated allied 02FAH-D 18335 | -2/Protoforge | Spotted Immortal 18335 | -2/Protoforge | Spotted Immortal 18347 | -2/Protoforge | Spotted V616-e 18347 | -2/Protoforge | Spotted V566-v 18348 | -2/Protoforge | Spotted V330-i 18427 | -2/Protoforge | Destroyed Immortal 18443 | -2/Protoforge | Destroyed Immortal 18454 | -2/Protoforge | Found Exp. Jetlance 18459 | -2/Protoforge | Spotted V551-r 18535 | -2/Protoforge | Spotted AP7-3 18535 | -2/Protoforge | Spotted AP7-3 18690 | -2/Protoforge | Build established: Scavenger-Sprinter 18708 | -2/Protoforge | Destroyed AP7-3 18723 | -2/Protoforge | Destroyed AP7-3 18743 | -2/Protoforge | Found Cep. Cloak Mesh 18746 | -2/Protoforge | Found Faulty Cep. Cloak Mesh 18748 | -2/Protoforge | Found Cep. Blasthammer 18750 | -2/Protoforge | Found Cep. Core Analysis Suite 18817 | -2/Protoforge | Additional patrols dispatched to research labs 18831 | -2/Protoforge | Found Cep. Navigation Harness 18861 | -2/Protoforge | Spotted Decapitator 18861 | -2/Protoforge | Spotted Decapitator 18893 | -2/Protoforge | Found Cep. Heavy Railcannon 18895 | -2/Protoforge | Found Cep. Lightning Penetrator 18899 | -2/Protoforge | Found Cep. Variable Chargecaster 18928 | -2/Protoforge | Destroyed Immortal 18934 | -2/Protoforge | Destroyed Immortal 18987 | -2/Protoforge | Spotted Striker 19009 | -2/Protoforge | Spotted Striker 19010 | -2/Protoforge | Destroyed Striker 19017 | -2/Protoforge | Destroyed Striker 19019 | -2/Protoforge | Spotted Executioner 19066 | -2/Protoforge | Fabricated Stasis Canceller (x2) 19155 | -2/Protoforge | Installed UFD Drillbomb at designated target 19155 | -2/Protoforge | UFD reported confirmed Drillbomb installation 19221 | -2/Protoforge | Found UFD Drillbomb 19235 | -2/Protoforge | Installed UFD Drillbomb at designated target 19235 | -2/Protoforge | UFD reported confirmed Drillbomb installation 19240 | -2/Protoforge | Found UFD Drillbomb 19252 | -2/Protoforge | Installed UFD Drillbomb at designated target 19252 | -2/Protoforge | UFD reported confirmed Drillbomb installation 19264 | -2/Protoforge | Found UFD Drillbomb 19295 | -2/Protoforge | Installed UFD Drillbomb at designated target 19295 | -2/Protoforge | UFD reported confirmed Drillbomb installation 19397 | -2/Protoforge | Found UFD Drillbomb 19419 | -2/Protoforge | Installed UFD Drillbomb at designated target 19419 | -2/Protoforge | UFD reported confirmed Drillbomb installation 19455 | -2/Protoforge | Spotted Striker 19460 | -2/Protoforge | Spotted Striker 19506 | -2/Protoforge | Build established: Scavenger-Ninja 19563 | -2/Protoforge | Spotted Executioner 19563 | -2/Protoforge | Spotted Striker 19580 | -2/Protoforge | Learned Access scanalyzer intel 19636 | -2/Protoforge | Found Exp. System Purifier 19647 | -2/Protoforge | Learned Research stockpile data 19652 | -2/Protoforge | Spotted Executioner 19652 | -2/Protoforge | Spotted Executioner 19667 | -2/Protoforge | Learned Research stockpile data 19677 | -2/Protoforge | Learned 4 Access zone layouts 19700 | -2/Protoforge | Destroyed Executioner 19700 | -2/Protoforge | Destroyed Executioner 19711 | -2/Protoforge | Lost 5 allies 19719 | -2/Protoforge | Spotted Hotshot 19732 | -2/Protoforge | Learned location of 2 exits from Research 19766 | -2/Protoforge | Spotted Striker 19768 | -2/Protoforge | Spotted Executioner 19784 | -2/Protoforge | Destroyed Striker 19794 | -2/Protoforge | Spotted Executioner 19794 | -2/Protoforge | Spotted Striker 19861 | -2/Protoforge | Found Cep. Matter Streamer 19900 | -2/Protoforge | Spotted Executioner 19910 | -2/Protoforge | Spotted Striker 19910 | -2/Protoforge | Destroyed Striker 19925 | -2/Protoforge | Destroyed Executioner 19925 | -2/Protoforge | Destroyed Executioner 19936 | -2/Protoforge | Spotted Executioner 19943 | -2/Protoforge | Destroyed Executioner 19973 | -2/Protoforge | Destroyed 9 combat bots 19980 | -2/Protoforge | Lost 5 allies 19988 | -2/Protoforge | Destroyed Striker 19992 | -2/Protoforge | Spotted Executioner 19995 | -2/Protoforge | Destroyed Striker 19998 | -2/Protoforge | Spotted Striker 20008 | -2/Protoforge | Core integrity fell below 50% 20009 | -2/Protoforge | Destroyed Striker 20057 | -2/Protoforge | Destroyed Executioner 20057 | -2/Protoforge | Destroyed Striker 20108 | -2/Protoforge | UFD reported confirmed Drillbomb installation 20165 | -2/Protoforge | Destroyed Executioner 20173 | -2/Protoforge | Destroyed Striker 20188 | -2/Protoforge | Destroyed Hotshot 20198 | -2/Protoforge | Destroyed Hotshot 20202 | -2/Protoforge | Build established: Scavenger-Scout 20203 | -2/Protoforge | Lost 4 allies 20219 | -2/Protoforge | Destroyed 22 combat bots 20225 | -2/Protoforge | Spotted Executioner 20226 | -2/Protoforge | Destroyed Executioner 20226 | -2/Protoforge | Spotted Executioner 20237 | -2/Protoforge | Spotted Striker 20238 | -2/Protoforge | Destroyed Executioner 20238 | -2/Protoforge | Spotted Striker 20259 | -2/Protoforge | Destroyed 12 combat bots 20311 | -2/Protoforge | Destroyed Executioner 20313 | -2/Protoforge | Destroyed Executioner 20317 | -2/Protoforge | Destroyed Executioner 20317 | -2/Protoforge | Destroyed Executioner 20342 | -2/Protoforge | Destroyed 13 combat bots 20351 | -2/Protoforge | Spotted Executioner 20377 | -2/Protoforge | Destroyed Executioner 20400 | -2/Protoforge | Destroyed Executioner 20451 | -2/Protoforge | Spotted Striker 20451 | -2/Protoforge | Spotted Striker 20451 | -2/Protoforge | Destroyed Striker 20453 | -2/Protoforge | Destroyed Striker 20455 | -2/Protoforge | Spotted Striker 20455 | -2/Protoforge | Spotted Striker 20494 | -2/Protoforge | Lost 3 allies 20561 | -2/Protoforge | Fabricated Adv. Gravity Neutralizer (x1) 20589 | -2/Protoforge | Spotted Striker 20677 | -2/Protoforge | Found UFD Drillbomb 20719 | -2/Protoforge | Installed UFD Drillbomb at designated target 20719 | -2/Protoforge | UFD reported confirmed Drillbomb installation 20733 | -2/Protoforge | Found UFD Drillbomb 20746 | -2/Protoforge | Repaired Cld. Field Propulsion Drive? 20757 | -2/Protoforge | Spotted Executioner 20757 | -2/Protoforge | Spotted Executioner 20757 | -2/Protoforge | Spotted Executioner 20758 | -2/Protoforge | Spotted Striker 20759 | -2/Protoforge | Build established: Sprinter 20829 | -2/Protoforge | Spotted Executioner 20856 | -2/Protoforge | Installed UFD Drillbomb at designated target 20856 | -2/Protoforge | UFD reported confirmed Drillbomb installation 20857 | -2/Protoforge | UFD began Drillbomb countdown 20857 | -2/Protoforge | Entered Access 20857 | -1/Access | Evolved 2 slots: Utility x2 20858 | -1/Access | Delivered the SGEMP Prototype to Zhirov 20858 | -1/Access | Zhirov transferred Access data 20859 | -1/Access | Loaded intel: 121 machine locations 20859 | -1/Access | Loaded intel: 92 trap records 20859 | -1/Access | Identified exit to Surface 20859 | -1/Access | Discovered exit to Surface (range 89) 20859 | -1/Access | Identified exit to Command 20859 | -1/Access | Discovered exit to Command (range 189) 20859 | -1/Access | Loaded intel: 4 scanalyzer locations 21010 | -1/Access | Crushed by falling debris 21011 | -1/Access | System corruption reached 10% 21041 | -1/Access | Lost 3 parts (3u) 21107 | -1/Access | First assault squad dispatched 21178 | -1/Access | Build established: Infiltrator-Sprinter 21234 | -1/Access | Entered Command 21286 | -1/Command | Spotted Combat Programmer 21310 | -1/Command | Met MAIN.C 21324 | -1/Command | 0b10 Conduit disabled 21371 | -1/Command | Destroyed MAIN.C Shell 21373 | -1/Command | MAIN.C activated Command garrisons 21385 | -1/Command | Spotted Combat Programmer 21388 | -1/Command | Core integrity fell below 50% 21402 | -1/Command | Core integrity fell below 20% 21406 | -1/Command | Spotted M Guard 21408 | -1/Command | Spotted M Guard 21416 | -1/Command | Destroyed by Combat Programmer with EMDS Last Messages --------------- 21400_ EMDS Slug penetrates 0b10 Conduit. 21401_ System corrupted: Heat flow error (+243). 21401_ Impulse Thruster Array destroyed. 21401_ Critical hit (Blast). 21402_ Exp. System Purifier purges 1% system corruption (11%). 21402_ Penetrated by EMDS Slug. 21403_ Acquired Transdimensional Reconstructor. 21404_ Penetrated by EMDS Slug. 21404_ Exp. System Purifier destroyed. 21405_ Extracted 355 energy. 21405_ EMDS Slug penetrates 0b10 Conduit. 21407_ Penetrated by EMDS Slug. 21408_ EMDS Slug penetrates 0b10 Conduit. 21413_ LU-1G1's Laser Shovel disintegrates Reinforced Barrier. 21413_ EMDS Slug penetrates Heavy Barrier. 21413_ LU-1G1's Laser Shovel disintegrates Reinforced Barrier. Heavy Barrier opened. Map ----- +----------------------------------------------------+ | ?????????????????????????????????????????????????? | | ?????????????????????????????????????????????????? | | ?????????????????????????????????????????????????? | | ?????????????????????????????????????????????????? | | ?????????????????????????????????????????????????? | | ?????????????????????????????????????????????????? | | ?????????????????????????????????????????????????? | | ????????????????????????????????????#??########### | | ????????????????????????????????????" """" | | ????????????????????????????????????? "" | | ???????????????????????????????????? "" | | ????????????????????? ???????""""??""""" | | ???????????????????## ??????" ?? "" | | ??????????????????? ??????"" """""" | | ??????????????????? ?????#"" """"" | | ???????????????????? ?????# " """"" % % | | ????????????????????# ?????# " "" % | | ????????????????###?# s ????# " | | ????????????????? * # s ????#""""" """ % | | ?????????????????? #s s ????#"" % | | ??????????????????? /s s ????# % " | | ????????????????????# ????# M " %" | | ??????????? ##+#### ##### " " " | | ??????????# p" " " """" | | ??????????# "" " " """" | | ??????????# @ " " " "*= | | ?????????????????######+##;;;; " """""""" % ]* | | ?????????????????????????##### " """ " """ " | | ?????????????????????????????# """ " " % !=] | | ?????????????????????????????##################### | | ?????????????????????????????????????????????????? | | ?????????????????????????????????????????????????? | | ?????????????????????????????????????????????????? | | ?????????????????????????????????????????????????? | | ?????????????????????????????????????????????????? | | ?????????????????????????????????????????????????? | | ?????????????????????????????????????????????????? | | ?????????????????????????????????????????????????? | | ?????????????????????????????????????????????????? | | ?????????????????????????????????????????????????? | | ?????????????????????????????????????????????????? | | ?????????????????????????????????????????????????? | | ?????????????????????????????????????????????????? | | ?????????????????????????????????????????????????? | | ?????????????????????????????????????????????????? | | ?????????????????????????????????????????????????? | | ?????????????????????????????????????????????????? | | ?????????????????????????????????????????????????? | | ?????????????????????????????????????????????????? | | ?????????????????????????????????????????????????? | +----------------------------------------------------+ Best States ------------- Heat Dissipation 72 Energy Generation 61 Energy Capacity 1140 Matter Stores 1050 Matter Capacity 1050 Sight Range 24 Robot Scan Range 18 Terrain Scan Range 20 Terrain Scan Density 1210 ECM Strength 1 Jamming Range 12 Cloak Strength 9 Power Amplification 30 Additional Mass Support 16 Corruption Block 8 Armor Coverage 800 Core Shielding 20 Utility Shielding 90 Phase Shifting 10 Evasion (%) 75 Core Analysis 11 Recoil Reduction 1 Offensive Hacking 28 Defensive Hacking 20 Authchip Count 2 Item Schematics ----------------- Surge Thruster | -8/Recycling | Hacked Hacking Suite | -8/Recycling | Hacked Multitool | -6/Factory | Scanalyzed CPS Tube | -6/Factory | Scanalyzed Mni. Grenade Launcher | -6/Factory | Scanalyzed Imp. System Restoration Module | -6/Factory | Scanalyzed Stasis Canceller | -6/Factory | Scanalyzed Adv. System Restoration Module | -6/Zion | Archive Adv. Terrain Scanner | -6/Zion | Archive Dispersion Rifle | -6/Zion | Archive Railgun | -6/Zion | Archive Plasma Rifle | -6/Zion | Archive Imp. Launcher Guidance Computer | -6/Zion | Archive System Guard | -6/Zion | Archive Adv. Cooling System | -6/Zion | Archive Mass Driver | -6/Zion | Archive Imp. System Shield | -6/Zion | Archive Flexi-carbon Leg | -6/Zion | Archive Field Propulsion Drive | -6/Zion | Archive Hvy. Machine Gun | -6/Zion | Archive Hvy. Phase Cannon | -6/Zion | Archive Imp. Trap Scanner | -6/Zion | Archive Fusion Reactor | -5/Factory | Hacked Lrn. Sensor Array | -4/Factory | Hacked Adv. Gravity Neutralizer | -4/Factory | Hacked Assault Drone Bay | -4/Zhirov | Free Exp. Heat Sink | -4/Zhirov | Free Exp. Optical Array | -4/Zhirov | Free Imp. Arc Thrower | -4/Zhirov | Free Prc. Energy Filter | -2/Protoforge | Archive Adv. Dynamic Insulation System | -2/Protoforge | Archive Hvy. Dispersion Rifle | -2/Protoforge | Archive Spectral Analyzer | -2/Protoforge | Archive Cld. Field Propulsion Drive | -2/Protoforge | Archive Robot Schematics ------------------ C-17 Slicer | -6/Factory | Hacked K-01 Serf | -6/Zion | Archive H-55 Commando | -6/Zion | Archive L-61 Swordsman | -6/Zion | Archive R-10 Processor | -2/Protoforge | Archive T-07 Excavator | -2/Protoforge | Archive Fabricated ------------ Hacking Suite | x1 | -6/Factory | Authchip Field Propulsion Drive | x2 | -5/Factory | Authchip Fusion Reactor | x1 | -5/Factory | Authchip Lrn. Sensor Array | x2 | -4/Factory | Authchip Adv. Gravity Neutralizer | x1 | -3/Research | Authchip Adv. Gravity Neutralizer | x1 | -2/Protoforge | Authchip Stasis Canceller | x2 | -2/Protoforge | Authchip Adv. Gravity Neutralizer | x1 | -2/Protoforge Repaired ---------- Multitool | 73% | -6/Factory Hammer | 2% | -6/Factory Nuclear Pulse Thruster | 33% | -6/Factory VTOL Module | 48% | -5/Factory Nuclear Pulse Thruster | 10% | -5/Factory | Broken Field Propulsion Drive | 10% | -5/Factory Nuclear Pulse Array | 19% | -4/Factory Adv. Terrain Scanner | 12% | -4/Factory Field Propulsion Drive | 16% | -4/Factory Nuclear Pulse Thruster | 50% | -4/Factory Field Propulsion Drive | 56% | -4/Factory Cold Fusion Reactor | 22% | -3/Research Adv. Gravity Neutralizer | 40% | -3/Research Cld. Field Propulsion Drive | 8% | -2/Protoforge Alien Tech Used ----------------- Integrated Dissipator Phase Redirector Sigix Broadsword Subatomic Replicator Dimensional Node Initializer Supercharged TR Achievements -------------- None Challenges ------------ None Game ------ Seed CargoGunExpander Manual? 0 Play Time 09:01:44 Cumulative 469.4 hours Start 2025.08.15 @ 11:41:25 End 2025.08.16 @ 17:27:49 Sessions 7 Manual Loads 0 Difficulty Rogue Special Mode None Game No. 204 Rogue 204 Adventurer 0 Explorer 0 Win Type - Total 31 Types 13/2/5/2/5/1/0/2/0/1 Lore% 95 Gallery% 86 Achievement% 79 Wizard Run 0 Options --------- Layout 1 ASCII 0 Keyboard 0 Movement Numpad Keybinds 0 Fullscreen 1 Font 24/Smallcaps Map View 50x35 Zoom Use 0% Tactical HUD 1 Map Filters NONE Filters NONE Steam 1 RUN: 4dc4c2f1-e561-4445-b168-820874a45d6b